Department family,Entity,Date,Expense type,Expense area,Supplier,Transaction number,Amount
Department of Health,Leicestershire Partnership NHS Trust,02/08/21,Payroll Deductions -Salary Sacrifice Cars Scheme,Balance Sheet Collection,TUSKER,50318,29243.21
Department of Health,Leicestershire Partnership NHS Trust,02/08/21,Computer Software,School Age Immunisation and Vaccinations,CINNAMON DIGITAL APP LTD,INV-058,39242.40
Department of Health,Leicestershire Partnership NHS Trust,02/08/21,Crs_NHS_LT1y -Resus Inventory Supplied.,Balance Sheet Collection,SUPPLY CHAIN CO LTD,1122076803,27607.25
Department of Health,Leicestershire Partnership NHS Trust,02/08/21,Unitary Payment,"The Agnes Unit (AKA Assessment and Treatment Centre) (P85, LPT)",ARDEN PARTNERSHIP (LEICESTER),SI0076,121262.86
Department of Health,Leicestershire Partnership NHS Trust,03/08/21,External Data Processing / Storage,Records & information Governance,H COATES LTD/TA C&V DATA,4006002,32134.70
Department of Health,Leicestershire Partnership NHS Trust,03/08/21,Healthcare Services / Recharges from Non-NHS Bodies,AMH - Central Access Point,TURNING POINT,SI-TPS-00034720,21486.83
Department of Health,Leicestershire Partnership NHS Trust,04/08/21,NURSE - BAND 2 - AGENCY,Beechwood Ward,HCL NURSING,HNSI0000738,4798.84
Department of Health,Leicestershire Partnership NHS Trust,04/08/21,NURSE - BAND 5 - AGENCY,Beechwood Ward,HCL NURSING,HNSI0000738,571.85
Department of Health,Leicestershire Partnership NHS Trust,04/08/21,NURSE - BAND 3 - AGENCY,CHS Phlebotomy Service,HCL NURSING,HNSI0000738,298.98
Department of Health,Leicestershire Partnership NHS Trust,04/08/21,NURSE - BAND 5 - AGENCY,City Planned Care - East,HCL NURSING,HNSI0000738,14211.42
Department of Health,Leicestershire Partnership NHS Trust,04/08/21,NURSE - BAND 5 - AGENCY,City Planned Care - West,HCL NURSING,HNSI0000738,15209.76
Department of Health,Leicestershire Partnership NHS Trust,04/08/21,NURSE - BAND 2 - AGENCY,Clarendon Ward,HCL NURSING,HNSI0000738,5066.13
Department of Health,Leicestershire Partnership NHS Trust,04/08/21,NURSE - BAND 5 - AGENCY,Clarendon Ward,HCL NURSING,HNSI0000738,4053.31
Department of Health,Leicestershire Partnership NHS Trust,04/08/21,NURSE - BAND 2 - AGENCY,Coalville Snibston Ward,HCL NURSING,HNSI0000738,2647.44
Department of Health,Leicestershire Partnership NHS Trust,04/08/21,NURSE - BAND 5 - AGENCY,Coalville Snibston Ward,HCL NURSING,HNSI0000738,3672.94
Department of Health,Leicestershire Partnership NHS Trust,04/08/21,NURSE - BAND 2 - AGENCY,Coalville Ward 2,HCL NURSING,HNSI0000738,240.34
Department of Health,Leicestershire Partnership NHS Trust,04/08/21,NURSE - BAND 5 - AGENCY,Coalville Ward 2,HCL NURSING,HNSI0000738,1040.20
Department of Health,Leicestershire Partnership NHS Trust,04/08/21,NURSE - BAND 2 - AGENCY,Dalgliesh Ward,HCL NURSING,HNSI0000738,426.52
Department of Health,Leicestershire Partnership NHS Trust,04/08/21,NURSE - BAND 5 - AGENCY,Dalgliesh Ward,HCL NURSING,HNSI0000738,2102.20
Department of Health,Leicestershire Partnership NHS Trust,04/08/21,NURSE - BAND 2 - AGENCY,H&B Comm Hosp East Ward,HCL NURSING,HNSI0000738,6292.78
Department of Health,Leicestershire Partnership NHS Trust,04/08/21,NURSE - BAND 5 - AGENCY,H&B Comm Hosp East Ward,HCL NURSING,HNSI0000738,3925.75
Department of Health,Leicestershire Partnership NHS Trust,04/08/21,NURSE - BAND 2 - AGENCY,H&B Comm Hosp North Ward,HCL NURSING,HNSI0000738,5612.42
Department of Health,Leicestershire Partnership NHS Trust,04/08/21,NURSE - BAND 5 - AGENCY,H&B Comm Hosp North Ward,HCL NURSING,HNSI0000738,4156.25
Department of Health,Leicestershire Partnership NHS Trust,04/08/21,NURSE - BAND 2 - AGENCY,Lough Swithland Ward,HCL NURSING,HNSI0000738,610.96
Department of Health,Leicestershire Partnership NHS Trust,04/08/21,NURSE - BAND 5 - AGENCY,Lough Swithland Ward,HCL NURSING,HNSI0000738,3047.60
Department of Health,Leicestershire Partnership NHS Trust,04/08/21,NURSE - BAND 2 - AGENCY,Rutland Ward Nursing,HCL NURSING,HNSI0000738,1931.37
Department of Health,Leicestershire Partnership NHS Trust,04/08/21,NURSE - BAND 5 - AGENCY,Rutland Ward Nursing,HCL NURSING,HNSI0000738,386.05
Department of Health,Leicestershire Partnership NHS Trust,04/08/21,NURSE - BAND 2 - AGENCY,St Lukes Ward 3,HCL NURSING,HNSI0000738,240.34
Department of Health,Leicestershire Partnership NHS Trust,04/08/21,NURSE - BAND 5 - AGENCY,St Lukes Ward 3,HCL NURSING,HNSI0000738,393.34
Department of Health,Leicestershire Partnership NHS Trust,04/08/21,NURSE - BAND 2 - AGENCY,Wakerley Ward,HCL NURSING,HNSI0000738,2738.05
Department of Health,Leicestershire Partnership NHS Trust,04/08/21,NURSE - BAND 5 - AGENCY,Wakerley Ward,HCL NURSING,HNSI0000738,4654.15
Department of Health,Leicestershire Partnership NHS Trust,04/08/21,NURSE - BAND 2 - AGENCY,Beechwood Ward,HCL NURSING,HNSI0000751,3463.56
Department of Health,Leicestershire Partnership NHS Trust,04/08/21,NURSE - BAND 5 - AGENCY,Beechwood Ward,HCL NURSING,HNSI0000751,1019.32
Department of Health,Leicestershire Partnership NHS Trust,04/08/21,NURSE - BAND 3 - AGENCY,CHS Phlebotomy Service,HCL NURSING,HNSI0000751,589.98
Department of Health,Leicestershire Partnership NHS Trust,04/08/21,NURSE - BAND 5 - AGENCY,City Planned Care - East,HCL NURSING,HNSI0000751,14275.29
Department of Health,Leicestershire Partnership NHS Trust,04/08/21,NURSE - BAND 5 - AGENCY,City Planned Care - West,HCL NURSING,HNSI0000751,9801.31
Department of Health,Leicestershire Partnership NHS Trust,04/08/21,NURSE - BAND 2 - AGENCY,Clarendon Ward,HCL NURSING,HNSI0000751,4237.51
Department of Health,Leicestershire Partnership NHS Trust,04/08/21,NURSE - BAND 5 - AGENCY,Clarendon Ward,HCL NURSING,HNSI0000751,3698.47
Department of Health,Leicestershire Partnership NHS Trust,04/08/21,NURSE - BAND 2 - AGENCY,Coalville Snibston Ward,HCL NURSING,HNSI0000751,2433.06
Department of Health,Leicestershire Partnership NHS Trust,04/08/21,NURSE - BAND 5 - AGENCY,Coalville Snibston Ward,HCL NURSING,HNSI0000751,2382.60
Department of Health,Leicestershire Partnership NHS Trust,04/08/21,NURSE - BAND 2 - AGENCY,Coalville Ward 2,HCL NURSING,HNSI0000751,474.39
Department of Health,Leicestershire Partnership NHS Trust,04/08/21,NURSE - BAND 5 - AGENCY,Coalville Ward 2,HCL NURSING,HNSI0000751,2970.80
Department of Health,Leicestershire Partnership NHS Trust,04/08/21,NURSE - BAND 2 - AGENCY,Dalgliesh Ward,HCL NURSING,HNSI0000751,2344.88
Department of Health,Leicestershire Partnership NHS Trust,04/08/21,NURSE - BAND 5 - AGENCY,Dalgliesh Ward,HCL NURSING,HNSI0000751,3642.45
Department of Health,Leicestershire Partnership NHS Trust,04/08/21,NURSE - BAND 2 - AGENCY,H&B Comm Hosp East Ward,HCL NURSING,HNSI0000751,4172.73
Department of Health,Leicestershire Partnership NHS Trust,04/08/21,NURSE - BAND 5 - AGENCY,H&B Comm Hosp East Ward,HCL NURSING,HNSI0000751,2212.70
Department of Health,Leicestershire Partnership NHS Trust,04/08/21,NURSE - BAND 2 - AGENCY,H&B Comm Hosp North Ward,HCL NURSING,HNSI0000751,7740.94
Department of Health,Leicestershire Partnership NHS Trust,04/08/21,NURSE - BAND 5 - AGENCY,H&B Comm Hosp North Ward,HCL NURSING,HNSI0000751,6476.26
Department of Health,Leicestershire Partnership NHS Trust,04/08/21,NURSE - BAND 2 - AGENCY,Lough Swithland Ward,HCL NURSING,HNSI0000751,240.34
Department of Health,Leicestershire Partnership NHS Trust,04/08/21,NURSE - BAND 5 - AGENCY,Lough Swithland Ward,HCL NURSING,HNSI0000751,4136.01
Department of Health,Leicestershire Partnership NHS Trust,04/08/21,NURSE - BAND 2 - AGENCY,Rutland Ward Nursing,HCL NURSING,HNSI0000751,2388.28
Department of Health,Leicestershire Partnership NHS Trust,04/08/21,NURSE - BAND 5 - AGENCY,Rutland Ward Nursing,HCL NURSING,HNSI0000751,406.21
Department of Health,Leicestershire Partnership NHS Trust,04/08/21,NURSE - BAND 2 - AGENCY,St Lukes Ward 3,HCL NURSING,HNSI0000751,2407.98
Department of Health,Leicestershire Partnership NHS Trust,04/08/21,NURSE - BAND 5 - AGENCY,St Lukes Ward 3,HCL NURSING,HNSI0000751,1020.86
Department of Health,Leicestershire Partnership NHS Trust,04/08/21,NURSE - BAND 2 - AGENCY,Wakerley Ward,HCL NURSING,HNSI0000751,3972.17
Department of Health,Leicestershire Partnership NHS Trust,04/08/21,NURSE - BAND 5 - AGENCY,Wakerley Ward,HCL NURSING,HNSI0000751,6018.71
Department of Health,Leicestershire Partnership NHS Trust,04/08/21,NURSE - BAND 2 - AGENCY,Beechwood Ward,HCL NURSING,HNSI0000743,6341.10
Department of Health,Leicestershire Partnership NHS Trust,04/08/21,NURSE - BAND 5 - AGENCY,Beechwood Ward,HCL NURSING,HNSI0000743,1414.20
Department of Health,Leicestershire Partnership NHS Trust,04/08/21,NURSE - BAND 3 - AGENCY,CHS Phlebotomy Service,HCL NURSING,HNSI0000743,56.00
Department of Health,Leicestershire Partnership NHS Trust,04/08/21,NURSE - BAND 5 - AGENCY,City Planned Care - East,HCL NURSING,HNSI0000743,11468.11
Department of Health,Leicestershire Partnership NHS Trust,04/08/21,NURSE - BAND 5 - AGENCY,City Planned Care - West,HCL NURSING,HNSI0000743,14902.56
Department of Health,Leicestershire Partnership NHS Trust,04/08/21,NURSE - BAND 2 - AGENCY,Clarendon Ward,HCL NURSING,HNSI0000743,1851.63
Department of Health,Leicestershire Partnership NHS Trust,04/08/21,NURSE - BAND 5 - AGENCY,Clarendon Ward,HCL NURSING,HNSI0000743,4198.79
Department of Health,Leicestershire Partnership NHS Trust,04/08/21,NURSE - BAND 2 - AGENCY,Coalville Snibston Ward,HCL NURSING,HNSI0000743,2320.69
Department of Health,Leicestershire Partnership NHS Trust,04/08/21,NURSE - BAND 5 - AGENCY,Coalville Snibston Ward,HCL NURSING,HNSI0000743,1789.60
Department of Health,Leicestershire Partnership NHS Trust,04/08/21,NURSE - BAND 2 - AGENCY,Coalville Ward 2,HCL NURSING,HNSI0000743,813.43
Department of Health,Leicestershire Partnership NHS Trust,04/08/21,NURSE - BAND 5 - AGENCY,Coalville Ward 2,HCL NURSING,HNSI0000743,1278.59
Department of Health,Leicestershire Partnership NHS Trust,04/08/21,NURSE - BAND 2 - AGENCY,Dalgliesh Ward,HCL NURSING,HNSI0000743,223.59
Department of Health,Leicestershire Partnership NHS Trust,04/08/21,NURSE - BAND 5 - AGENCY,Dalgliesh Ward,HCL NURSING,HNSI0000743,4955.81
Department of Health,Leicestershire Partnership NHS Trust,04/08/21,NURSE - BAND 2 - AGENCY,H&B Comm Hosp East Ward,HCL NURSING,HNSI0000743,4130.28
Department of Health,Leicestershire Partnership NHS Trust,04/08/21,NURSE - BAND 5 - AGENCY,H&B Comm Hosp East Ward,HCL NURSING,HNSI0000743,4564.76
Department of Health,Leicestershire Partnership NHS Trust,04/08/21,NURSE - BAND 2 - AGENCY,H&B Comm Hosp North Ward,HCL NURSING,HNSI0000743,7643.17
Department of Health,Leicestershire Partnership NHS Trust,04/08/21,NURSE - BAND 5 - AGENCY,H&B Comm Hosp North Ward,HCL NURSING,HNSI0000743,5283.67
Department of Health,Leicestershire Partnership NHS Trust,04/08/21,NURSE - BAND 2 - AGENCY,Lough Swithland Ward,HCL NURSING,HNSI0000743,254.94
Department of Health,Leicestershire Partnership NHS Trust,04/08/21,NURSE - BAND 5 - AGENCY,Lough Swithland Ward,HCL NURSING,HNSI0000743,3548.61
Department of Health,Leicestershire Partnership NHS Trust,04/08/21,NURSE - BAND 2 - AGENCY,Rutland Ward Nursing,HCL NURSING,HNSI0000743,890.45
Department of Health,Leicestershire Partnership NHS Trust,04/08/21,NURSE - BAND 5 - AGENCY,Rutland Ward Nursing,HCL NURSING,HNSI0000743,1630.35
Department of Health,Leicestershire Partnership NHS Trust,04/08/21,Nurse - Band 6 -Agency,South Leicestershire CMHT MHSOP,HCL NURSING,HNSI0000743,326.45
Department of Health,Leicestershire Partnership NHS Trust,04/08/21,NURSE - BAND 2 - AGENCY,St Lukes Ward 3,HCL NURSING,HNSI0000743,770.56
Department of Health,Leicestershire Partnership NHS Trust,04/08/21,NURSE - BAND 5 - AGENCY,St Lukes Ward 3,HCL NURSING,HNSI0000743,386.05
Department of Health,Leicestershire Partnership NHS Trust,04/08/21,NURSE - BAND 2 - AGENCY,Wakerley Ward,HCL NURSING,HNSI0000743,3858.14
Department of Health,Leicestershire Partnership NHS Trust,04/08/21,NURSE - BAND 5 - AGENCY,Wakerley Ward,HCL NURSING,HNSI0000743,4172.34
Department of Health,Leicestershire Partnership NHS Trust,04/08/21,Services / Recharges from NHS Trusts,Inter Unit I & E Distribution,UHL NHS TRUST (RWE),L0252400,144923.71
Department of Health,Leicestershire Partnership NHS Trust,04/08/21,Healthcare Services / Recharges from Non-NHS Bodies,CAMHS Outpatients,HEALIOS LTD,2062,0.00
Department of Health,Leicestershire Partnership NHS Trust,04/08/21,Healthcare Services / Recharges from Non-NHS Bodies,CAMHS Waiting List Monies,HEALIOS LTD,2062,39000.00
Department of Health,Leicestershire Partnership NHS Trust,05/08/21,Healthcare Services / Recharges from Non-NHS Bodies,Adult Eating Disorder Collaborative,ELLERN MEDE MOORGATE,235,36000.00
Department of Health,Leicestershire Partnership NHS Trust,05/08/21,Healthcare Services / Recharges from Non-NHS Bodies,Adult Eating Disorder Collaborative,ELLERN MEDE MOORGATE,220,37200.00
Department of Health,Leicestershire Partnership NHS Trust,05/08/21,Healthcare Services / Recharges from Non-NHS Bodies,Adult Eating Disorder Collaborative,CYGNET HC LTD,EMED008INV,29699.24
Department of Health,Leicestershire Partnership NHS Trust,06/08/21,Nurse - Band 6 -Agency,AMH - Central Access Point,HCL NURSING,HNSI0000754,6474.67
Department of Health,Leicestershire Partnership NHS Trust,06/08/21,Nurse - Band 6 -Agency,Adult City East CMHT - Merlyn Vaz,HCL NURSING,HNSI0000754,1069.97
Department of Health,Leicestershire Partnership NHS Trust,06/08/21,Nurse - Band 6 -Agency,Adult County Charnwood CMHT - Loughborough Base,HCL NURSING,HNSI0000754,1377.01
Department of Health,Leicestershire Partnership NHS Trust,06/08/21,Nurse - Band 6 -Agency,Adult County West Leicestershire CMHT,HCL NURSING,HNSI0000754,1069.97
Department of Health,Leicestershire Partnership NHS Trust,06/08/21,NURSE - BAND 2 - AGENCY,Agnes Unit Management,HCL NURSING,HNSI0000754,11640.33
Department of Health,Leicestershire Partnership NHS Trust,06/08/21,NURSE - BAND 5 - AGENCY,Agnes Unit Management,HCL NURSING,HNSI0000754,12706.71
Department of Health,Leicestershire Partnership NHS Trust,06/08/21,NURSE - BAND 5 - AGENCY,Ashby Ward (Bradgate Unit),HCL NURSING,HNSI0000754,1792.27
Department of Health,Leicestershire Partnership NHS Trust,06/08/21,NURSE - BAND 2 - AGENCY,Aston Ward (Bradgate Unit),HCL NURSING,HNSI0000754,2189.88
Department of Health,Leicestershire Partnership NHS Trust,06/08/21,NURSE - BAND 5 - AGENCY,Aston Ward (Bradgate Unit),HCL NURSING,HNSI0000754,329.84
Department of Health,Leicestershire Partnership NHS Trust,06/08/21,NURSE - BAND 2 - AGENCY,Beaumont Ward - Bradgate Unit,HCL NURSING,HNSI0000754,5367.83
Department of Health,Leicestershire Partnership NHS Trust,06/08/21,NURSE - BAND 5 - AGENCY,Beaumont Ward - Bradgate Unit,HCL NURSING,HNSI0000754,2108.79
Department of Health,Leicestershire Partnership NHS Trust,06/08/21,NURSE - BAND 2 - AGENCY,Belvoir Psychiatric Intensive Care Unit,HCL NURSING,HNSI0000754,1703.10
Department of Health,Leicestershire Partnership NHS Trust,06/08/21,NURSE - BAND 5 - AGENCY,Belvoir Psychiatric Intensive Care Unit,HCL NURSING,HNSI0000754,3254.86
Department of Health,Leicestershire Partnership NHS Trust,06/08/21,NURSE - BAND 2 - AGENCY,Cedar (Willows),HCL NURSING,HNSI0000754,174.73
Department of Health,Leicestershire Partnership NHS Trust,06/08/21,Nurse - Band 6 -Agency,City West CMHT MHSOP,HCL NURSING,HNSI0000754,2116.22
Department of Health,Leicestershire Partnership NHS Trust,06/08/21,NURSE - BAND 2 - AGENCY,Coleman Ward,HCL NURSING,HNSI0000754,5239.38
Department of Health,Leicestershire Partnership NHS Trust,06/08/21,NURSE - BAND 5 - AGENCY,Coleman Ward,HCL NURSING,HNSI0000754,4824.09
Department of Health,Leicestershire Partnership NHS Trust,06/08/21,NURSE - BAND 2 - AGENCY,Griffin Ward (HPC),HCL NURSING,HNSI0000754,692.96
Department of Health,Leicestershire Partnership NHS Trust,06/08/21,NURSE - BAND 5 - AGENCY,Griffin Ward (HPC),HCL NURSING,HNSI0000754,329.84
Department of Health,Leicestershire Partnership NHS Trust,06/08/21,NURSE - BAND 2 - AGENCY,Heather Ward,HCL NURSING,HNSI0000754,7533.29
Department of Health,Leicestershire Partnership NHS Trust,06/08/21,NURSE - BAND 5 - AGENCY,Heather Ward,HCL NURSING,HNSI0000754,3973.28
Department of Health,Leicestershire Partnership NHS Trust,06/08/21,NURSE - BAND 2 - AGENCY,Kirby Ward,HCL NURSING,HNSI0000754,1284.28
Department of Health,Leicestershire Partnership NHS Trust,06/08/21,NURSE - BAND 2 - AGENCY,LD City Nursing,HCL NURSING,HNSI0000754,113.27
Department of Health,Leicestershire Partnership NHS Trust,06/08/21,Nurse - Band 6 -Agency,Liaison & Diversion - Criminal Justice,HCL NURSING,HNSI0000754,1522.92
Department of Health,Leicestershire Partnership NHS Trust,06/08/21,NURSE - BAND 2 - AGENCY,Mill Lodge,HCL NURSING,HNSI0000754,6012.12
Department of Health,Leicestershire Partnership NHS Trust,06/08/21,NURSE - BAND 5 - AGENCY,Mill Lodge,HCL NURSING,HNSI0000754,1274.65
Department of Health,Leicestershire Partnership NHS Trust,06/08/21,NURSE - BAND 2 - AGENCY,Phoenix Ward (HPC),HCL NURSING,HNSI0000754,981.20
Department of Health,Leicestershire Partnership NHS Trust,06/08/21,NURSE - BAND 5 - AGENCY,Phoenix Ward (HPC),HCL NURSING,HNSI0000754,449.54
Department of Health,Leicestershire Partnership NHS Trust,06/08/21,NURSE - BAND 2 - AGENCY,Place Of Safety Assessment Unit,HCL NURSING,HNSI0000754,440.44
Department of Health,Leicestershire Partnership NHS Trust,06/08/21,NURSE - BAND 5 - AGENCY,Place Of Safety Assessment Unit,HCL NURSING,HNSI0000754,1059.34
Department of Health,Leicestershire Partnership NHS Trust,06/08/21,NURSE - BAND 2 - AGENCY,Stewart House,HCL NURSING,HNSI0000754,499.09
Department of Health,Leicestershire Partnership NHS Trust,06/08/21,NURSE - BAND 2 - AGENCY,Watermead Ward (Bradgate Unit),HCL NURSING,HNSI0000754,269.49
Department of Health,Leicestershire Partnership NHS Trust,06/08/21,NURSE - BAND 2 - AGENCY,Welford Ward,HCL NURSING,HNSI0000754,2860.12
Department of Health,Leicestershire Partnership NHS Trust,06/08/21,NURSE - BAND 5 - AGENCY,Welford Ward,HCL NURSING,HNSI0000754,439.50
Department of Health,Leicestershire Partnership NHS Trust,06/08/21,Nurse - Band 6 -Agency,AMH - Central Access Point,HCL NURSING,HNSI0000750,5443.04
Department of Health,Leicestershire Partnership NHS Trust,06/08/21,NURSE - BAND 2 - AGENCY,Acacia (Willows),HCL NURSING,HNSI0000750,462.74
Department of Health,Leicestershire Partnership NHS Trust,06/08/21,Nurse - Band 6 -Agency,Adult City East CMHT - Merlyn Vaz,HCL NURSING,HNSI0000750,2376.80
Department of Health,Leicestershire Partnership NHS Trust,06/08/21,Nurse - Band 6 -Agency,Adult County Charnwood CMHT - Loughborough Base,HCL NURSING,HNSI0000750,2892.63
Department of Health,Leicestershire Partnership NHS Trust,06/08/21,Nurse - Band 6 -Agency,Adult County West Leicestershire CMHT,HCL NURSING,HNSI0000750,1069.97
Department of Health,Leicestershire Partnership NHS Trust,06/08/21,NURSE - BAND 2 - AGENCY,Agnes Unit Management,HCL NURSING,HNSI0000750,8665.68
Department of Health,Leicestershire Partnership NHS Trust,06/08/21,NURSE - BAND 5 - AGENCY,Agnes Unit Management,HCL NURSING,HNSI0000750,15516.44
Department of Health,Leicestershire Partnership NHS Trust,06/08/21,NURSE - BAND 2 - AGENCY,Ashby Ward (Bradgate Unit),HCL NURSING,HNSI0000750,386.36
Department of Health,Leicestershire Partnership NHS Trust,06/08/21,NURSE - BAND 5 - AGENCY,Ashby Ward (Bradgate Unit),HCL NURSING,HNSI0000750,763.31
Department of Health,Leicestershire Partnership NHS Trust,06/08/21,NURSE - BAND 2 - AGENCY,Aston Ward (Bradgate Unit),HCL NURSING,HNSI0000750,1634.50
Department of Health,Leicestershire Partnership NHS Trust,06/08/21,NURSE - BAND 5 - AGENCY,Aston Ward (Bradgate Unit),HCL NURSING,HNSI0000750,329.84
Department of Health,Leicestershire Partnership NHS Trust,06/08/21,NURSE - BAND 2 - AGENCY,Beaumont Ward - Bradgate Unit,HCL NURSING,HNSI0000750,1336.78
Department of Health,Leicestershire Partnership NHS Trust,06/08/21,NURSE - BAND 2 - AGENCY,Belvoir Psychiatric Intensive Care Unit,HCL NURSING,HNSI0000750,2865.11
Department of Health,Leicestershire Partnership NHS Trust,06/08/21,NURSE - BAND 5 - AGENCY,Belvoir Psychiatric Intensive Care Unit,HCL NURSING,HNSI0000750,2739.88
Department of Health,Leicestershire Partnership NHS Trust,06/08/21,NURSE - BAND 2 - AGENCY,Cedar (Willows),HCL NURSING,HNSI0000750,192.21
Department of Health,Leicestershire Partnership NHS Trust,06/08/21,Nurse - Band 6 -Agency,City West CMHT MHSOP,HCL NURSING,HNSI0000750,3162.47
Department of Health,Leicestershire Partnership NHS Trust,06/08/21,NURSE - BAND 2 - AGENCY,Coleman Ward,HCL NURSING,HNSI0000750,11332.54
Department of Health,Leicestershire Partnership NHS Trust,06/08/21,NURSE - BAND 5 - AGENCY,Coleman Ward,HCL NURSING,HNSI0000750,7766.68
Department of Health,Leicestershire Partnership NHS Trust,06/08/21,NURSE - BAND 2 - AGENCY,Griffin Ward (HPC),HCL NURSING,HNSI0000750,758.57
Department of Health,Leicestershire Partnership NHS Trust,06/08/21,NURSE - BAND 5 - AGENCY,Griffin Ward (HPC),HCL NURSING,HNSI0000750,392.91
Department of Health,Leicestershire Partnership NHS Trust,06/08/21,NURSE - BAND 2 - AGENCY,Heather Ward,HCL NURSING,HNSI0000750,5505.92
Department of Health,Leicestershire Partnership NHS Trust,06/08/21,NURSE - BAND 5 - AGENCY,Heather Ward,HCL NURSING,HNSI0000750,369.29
Department of Health,Leicestershire Partnership NHS Trust,06/08/21,NURSE - BAND 2 - AGENCY,Kirby Ward,HCL NURSING,HNSI0000750,2130.03
Department of Health,Leicestershire Partnership NHS Trust,06/08/21,Nurse - Band 6 -Agency,Liaison & Diversion - Criminal Justice,HCL NURSING,HNSI0000750,1154.06
Department of Health,Leicestershire Partnership NHS Trust,06/08/21,NURSE - BAND 2 - AGENCY,Maple Ward,HCL NURSING,HNSI0000750,691.51
Department of Health,Leicestershire Partnership NHS Trust,06/08/21,NURSE - BAND 2 - AGENCY,Mill Lodge,HCL NURSING,HNSI0000750,6912.05
Department of Health,Leicestershire Partnership NHS Trust,06/08/21,NURSE - BAND 5 - AGENCY,Mill Lodge,HCL NURSING,HNSI0000750,2926.99
Department of Health,Leicestershire Partnership NHS Trust,06/08/21,NURSE - BAND 5 - AGENCY,Place Of Safety Assessment Unit,HCL NURSING,HNSI0000750,686.71
Department of Health,Leicestershire Partnership NHS Trust,06/08/21,NURSE - BAND 2 - AGENCY,Stewart House,HCL NURSING,HNSI0000750,371.52
Department of Health,Leicestershire Partnership NHS Trust,06/08/21,NURSE - BAND 5 - AGENCY,Stewart House,HCL NURSING,HNSI0000750,447.15
Department of Health,Leicestershire Partnership NHS Trust,06/08/21,NURSE - BAND 2 - AGENCY,Thornton Ward - Bradgate Unit,HCL NURSING,HNSI0000750,387.99
Department of Health,Leicestershire Partnership NHS Trust,06/08/21,NURSE - BAND 2 - AGENCY,Watermead Ward (Bradgate Unit),HCL NURSING,HNSI0000750,741.73
Department of Health,Leicestershire Partnership NHS Trust,06/08/21,NURSE - BAND 5 - AGENCY,Watermead Ward (Bradgate Unit),HCL NURSING,HNSI0000750,1172.50
Department of Health,Leicestershire Partnership NHS Trust,06/08/21,NURSE - BAND 2 - AGENCY,Welford Ward,HCL NURSING,HNSI0000750,4169.96
Department of Health,Leicestershire Partnership NHS Trust,06/08/21,NURSE - BAND 5 - AGENCY,Welford Ward,HCL NURSING,HNSI0000750,605.20
Department of Health,Leicestershire Partnership NHS Trust,06/08/21,Nurse - Band 6 -Agency,AMH - Central Access Point,HCL NURSING,HNSI0000742,4222.08
Department of Health,Leicestershire Partnership NHS Trust,06/08/21,NURSE - BAND 2 - AGENCY,Acacia (Willows),HCL NURSING,HNSI0000742,174.73
Department of Health,Leicestershire Partnership NHS Trust,06/08/21,Nurse - Band 6 -Agency,Adult City East CMHT - Merlyn Vaz,HCL NURSING,HNSI0000742,1069.97
Department of Health,Leicestershire Partnership NHS Trust,06/08/21,Nurse - Band 6 -Agency,Adult County Charnwood CMHT - Loughborough Base,HCL NURSING,HNSI0000742,1377.01
Department of Health,Leicestershire Partnership NHS Trust,06/08/21,Nurse - Band 6 -Agency,Adult County West Leicestershire CMHT,HCL NURSING,HNSI0000742,1069.97
Department of Health,Leicestershire Partnership NHS Trust,06/08/21,NURSE - BAND 2 - AGENCY,Agnes Unit Management,HCL NURSING,HNSI0000742,10517.62
Department of Health,Leicestershire Partnership NHS Trust,06/08/21,NURSE - BAND 5 - AGENCY,Agnes Unit Management,HCL NURSING,HNSI0000742,13964.68
Department of Health,Leicestershire Partnership NHS Trust,06/08/21,NURSE - BAND 2 - AGENCY,Ashby Ward (Bradgate Unit),HCL NURSING,HNSI0000742,831.00
Department of Health,Leicestershire Partnership NHS Trust,06/08/21,NURSE - BAND 5 - AGENCY,Ashby Ward (Bradgate Unit),HCL NURSING,HNSI0000742,686.71
Department of Health,Leicestershire Partnership NHS Trust,06/08/21,NURSE - BAND 2 - AGENCY,Aston Ward (Bradgate Unit),HCL NURSING,HNSI0000742,1340.92
Department of Health,Leicestershire Partnership NHS Trust,06/08/21,NURSE - BAND 5 - AGENCY,Aston Ward (Bradgate Unit),HCL NURSING,HNSI0000742,339.98
Department of Health,Leicestershire Partnership NHS Trust,06/08/21,NURSE - BAND 2 - AGENCY,Beaumont Ward - Bradgate Unit,HCL NURSING,HNSI0000742,881.12
Department of Health,Leicestershire Partnership NHS Trust,06/08/21,NURSE - BAND 5 - AGENCY,Beaumont Ward - Bradgate Unit,HCL NURSING,HNSI0000742,514.85
Department of Health,Leicestershire Partnership NHS Trust,06/08/21,NURSE - BAND 2 - AGENCY,Belvoir Psychiatric Intensive Care Unit,HCL NURSING,HNSI0000742,1497.93
Department of Health,Leicestershire Partnership NHS Trust,06/08/21,NURSE - BAND 5 - AGENCY,Belvoir Psychiatric Intensive Care Unit,HCL NURSING,HNSI0000742,3892.73
Department of Health,Leicestershire Partnership NHS Trust,06/08/21,Nurse - Band 6 -Agency,City West CMHT MHSOP,HCL NURSING,HNSI0000742,1069.97
Department of Health,Leicestershire Partnership NHS Trust,06/08/21,NURSE - BAND 2 - AGENCY,Coleman Ward,HCL NURSING,HNSI0000742,9214.03
Department of Health,Leicestershire Partnership NHS Trust,06/08/21,NURSE - BAND 5 - AGENCY,Coleman Ward,HCL NURSING,HNSI0000742,7883.96
Department of Health,Leicestershire Partnership NHS Trust,06/08/21,NURSE - BAND 2 - AGENCY,Griffin Ward (HPC),HCL NURSING,HNSI0000742,1136.03
Department of Health,Leicestershire Partnership NHS Trust,06/08/21,NURSE - BAND 5 - AGENCY,Griffin Ward (HPC),HCL NURSING,HNSI0000742,1382.42
Department of Health,Leicestershire Partnership NHS Trust,06/08/21,NURSE - BAND 2 - AGENCY,Heather Ward,HCL NURSING,HNSI0000742,906.22
Department of Health,Leicestershire Partnership NHS Trust,06/08/21,NURSE - BAND 2 - AGENCY,Kirby Ward,HCL NURSING,HNSI0000742,1289.59
Department of Health,Leicestershire Partnership NHS Trust,06/08/21,NURSE - BAND 5 - AGENCY,Kirby Ward,HCL NURSING,HNSI0000742,551.85
Department of Health,Leicestershire Partnership NHS Trust,06/08/21,Nurse - Band 6 -Agency,Liaison & Diversion - Criminal Justice,HCL NURSING,HNSI0000742,804.02
Department of Health,Leicestershire Partnership NHS Trust,06/08/21,NURSE - BAND 2 - AGENCY,Mill Lodge,HCL NURSING,HNSI0000742,5979.82
Department of Health,Leicestershire Partnership NHS Trust,06/08/21,NURSE - BAND 5 - AGENCY,Mill Lodge,HCL NURSING,HNSI0000742,1231.80
Department of Health,Leicestershire Partnership NHS Trust,06/08/21,NURSE - BAND 2 - AGENCY,Phoenix Ward (HPC),HCL NURSING,HNSI0000742,1360.44
Department of Health,Leicestershire Partnership NHS Trust,06/08/21,NURSE - BAND 5 - AGENCY,Phoenix Ward (HPC),HCL NURSING,HNSI0000742,1451.29
Department of Health,Leicestershire Partnership NHS Trust,06/08/21,NURSE - BAND 2 - AGENCY,Place Of Safety Assessment Unit,HCL NURSING,HNSI0000742,176.79
Department of Health,Leicestershire Partnership NHS Trust,06/08/21,NURSE - BAND 2 - AGENCY,Stewart House,HCL NURSING,HNSI0000742,612.26
Department of Health,Leicestershire Partnership NHS Trust,06/08/21,NURSE - BAND 5 - AGENCY,Stewart House,HCL NURSING,HNSI0000742,1196.26
Department of Health,Leicestershire Partnership NHS Trust,06/08/21,NURSE - BAND 2 - AGENCY,Thornton Ward - Bradgate Unit,HCL NURSING,HNSI0000742,444.22
Department of Health,Leicestershire Partnership NHS Trust,06/08/21,NURSE - BAND 2 - AGENCY,Urgent Care Hub,HCL NURSING,HNSI0000742,231.62
Department of Health,Leicestershire Partnership NHS Trust,06/08/21,NURSE - BAND 2 - AGENCY,Watermead Ward (Bradgate Unit),HCL NURSING,HNSI0000742,1011.45
Department of Health,Leicestershire Partnership NHS Trust,06/08/21,NURSE - BAND 2 - AGENCY,Welford Ward,HCL NURSING,HNSI0000742,3374.90
Department of Health,Leicestershire Partnership NHS Trust,06/08/21,NURSE - BAND 5 - AGENCY,Welford Ward,HCL NURSING,HNSI0000742,302.60
Department of Health,Leicestershire Partnership NHS Trust,06/08/21,Nurse - Band 6 -Agency,AMH - Central Access Point,HCL NURSING,HNSI0000736,7289.39
Department of Health,Leicestershire Partnership NHS Trust,06/08/21,Nurse - Band 6 -Agency,Adult City East CMHT - Merlyn Vaz,HCL NURSING,HNSI0000736,2518.81
Department of Health,Leicestershire Partnership NHS Trust,06/08/21,Nurse - Band 6 -Agency,Adult County Charnwood CMHT - Loughborough Base,HCL NURSING,HNSI0000736,2761.43
Department of Health,Leicestershire Partnership NHS Trust,06/08/21,Nurse - Band 6 -Agency,Adult County West Leicestershire CMHT,HCL NURSING,HNSI0000736,1069.97
Department of Health,Leicestershire Partnership NHS Trust,06/08/21,NURSE - BAND 2 - AGENCY,Agnes Unit Management,HCL NURSING,HNSI0000736,13280.53
Department of Health,Leicestershire Partnership NHS Trust,06/08/21,NURSE - BAND 5 - AGENCY,Agnes Unit Management,HCL NURSING,HNSI0000736,14861.68
Department of Health,Leicestershire Partnership NHS Trust,06/08/21,NURSE - BAND 2 - AGENCY,Ashby Ward (Bradgate Unit),HCL NURSING,HNSI0000736,573.05
Department of Health,Leicestershire Partnership NHS Trust,06/08/21,NURSE - BAND 5 - AGENCY,Ashby Ward (Bradgate Unit),HCL NURSING,HNSI0000736,850.48
Department of Health,Leicestershire Partnership NHS Trust,06/08/21,NURSE - BAND 2 - AGENCY,Aston Ward (Bradgate Unit),HCL NURSING,HNSI0000736,898.72
Department of Health,Leicestershire Partnership NHS Trust,06/08/21,NURSE - BAND 2 - AGENCY,Beaumont Ward - Bradgate Unit,HCL NURSING,HNSI0000736,747.77
Department of Health,Leicestershire Partnership NHS Trust,06/08/21,NURSE - BAND 2 - AGENCY,Belvoir Psychiatric Intensive Care Unit,HCL NURSING,HNSI0000736,2721.56
Department of Health,Leicestershire Partnership NHS Trust,06/08/21,NURSE - BAND 5 - AGENCY,Belvoir Psychiatric Intensive Care Unit,HCL NURSING,HNSI0000736,1752.82
Department of Health,Leicestershire Partnership NHS Trust,06/08/21,Nurse - Band 6 -Agency,City West CMHT MHSOP,HCL NURSING,HNSI0000736,3162.47
Department of Health,Leicestershire Partnership NHS Trust,06/08/21,NURSE - BAND 2 - AGENCY,Coleman Ward,HCL NURSING,HNSI0000736,8260.40
Department of Health,Leicestershire Partnership NHS Trust,06/08/21,NURSE - BAND 5 - AGENCY,Coleman Ward,HCL NURSING,HNSI0000736,11015.91
Department of Health,Leicestershire Partnership NHS Trust,06/08/21,NURSE - BAND 2 - AGENCY,Griffin Ward (HPC),HCL NURSING,HNSI0000736,174.73
Department of Health,Leicestershire Partnership NHS Trust,06/08/21,NURSE - BAND 5 - AGENCY,Griffin Ward (HPC),HCL NURSING,HNSI0000736,763.31
Department of Health,Leicestershire Partnership NHS Trust,06/08/21,NURSE - BAND 2 - AGENCY,Heather Ward,HCL NURSING,HNSI0000736,784.00
Department of Health,Leicestershire Partnership NHS Trust,06/08/21,NURSE - BAND 5 - AGENCY,Heather Ward,HCL NURSING,HNSI0000736,669.81
Department of Health,Leicestershire Partnership NHS Trust,06/08/21,NURSE - BAND 2 - AGENCY,Kirby Ward,HCL NURSING,HNSI0000736,947.52
Department of Health,Leicestershire Partnership NHS Trust,06/08/21,Nurse - Band 6 -Agency,Liaison & Diversion - Criminal Justice,HCL NURSING,HNSI0000736,1522.92
Department of Health,Leicestershire Partnership NHS Trust,06/08/21,NURSE - BAND 2 - AGENCY,Mill Lodge,HCL NURSING,HNSI0000736,3602.59
Department of Health,Leicestershire Partnership NHS Trust,06/08/21,NURSE - BAND 5 - AGENCY,Mill Lodge,HCL NURSING,HNSI0000736,1643.41
Department of Health,Leicestershire Partnership NHS Trust,06/08/21,NURSE - BAND 2 - AGENCY,Phoenix Ward (HPC),HCL NURSING,HNSI0000736,1352.87
Department of Health,Leicestershire Partnership NHS Trust,06/08/21,NURSE - BAND 5 - AGENCY,Phoenix Ward (HPC),HCL NURSING,HNSI0000736,500.00
Department of Health,Leicestershire Partnership NHS Trust,06/08/21,NURSE - BAND 5 - AGENCY,Place Of Safety Assessment Unit,HCL NURSING,HNSI0000736,1666.09
Department of Health,Leicestershire Partnership NHS Trust,06/08/21,NURSE - BAND 2 - AGENCY,Stewart House,HCL NURSING,HNSI0000736,169.24
Department of Health,Leicestershire Partnership NHS Trust,06/08/21,NURSE - BAND 5 - AGENCY,Thornton Ward - Bradgate Unit,HCL NURSING,HNSI0000736,329.84
Department of Health,Leicestershire Partnership NHS Trust,06/08/21,NURSE - BAND 2 - AGENCY,Watermead Ward (Bradgate Unit),HCL NURSING,HNSI0000736,1413.65
Department of Health,Leicestershire Partnership NHS Trust,06/08/21,NURSE - BAND 5 - AGENCY,Watermead Ward (Bradgate Unit),HCL NURSING,HNSI0000736,392.91
Department of Health,Leicestershire Partnership NHS Trust,06/08/21,NURSE - BAND 2 - AGENCY,Welford Ward,HCL NURSING,HNSI0000736,1717.38
Department of Health,Leicestershire Partnership NHS Trust,06/08/21,NURSE - BAND 5 - AGENCY,Welford Ward,HCL NURSING,HNSI0000736,302.60
Department of Health,Leicestershire Partnership NHS Trust,06/08/21,Nurse - Band 6 -Agency,AMH - Central Access Point,HCL NURSING,HNSI0000732,4580.22
Department of Health,Leicestershire Partnership NHS Trust,06/08/21,Nurse - Band 6 -Agency,Adult City East CMHT - Merlyn Vaz,HCL NURSING,HNSI0000732,2475.57
Department of Health,Leicestershire Partnership NHS Trust,06/08/21,Nurse - Band 6 -Agency,Adult County Charnwood CMHT - Loughborough Base,HCL NURSING,HNSI0000732,2155.72
Department of Health,Leicestershire Partnership NHS Trust,06/08/21,Nurse - Band 6 -Agency,Adult County West Leicestershire CMHT,HCL NURSING,HNSI0000732,1069.97
Department of Health,Leicestershire Partnership NHS Trust,06/08/21,NURSE - BAND 2 - AGENCY,Agnes Unit Management,HCL NURSING,HNSI0000732,13147.42
Department of Health,Leicestershire Partnership NHS Trust,06/08/21,NURSE - BAND 5 - AGENCY,Agnes Unit Management,HCL NURSING,HNSI0000732,16070.51
Department of Health,Leicestershire Partnership NHS Trust,06/08/21,NURSE - BAND 2 - AGENCY,Ashby Ward (Bradgate Unit),HCL NURSING,HNSI0000732,1424.97
Department of Health,Leicestershire Partnership NHS Trust,06/08/21,NURSE - BAND 5 - AGENCY,Ashby Ward (Bradgate Unit),HCL NURSING,HNSI0000732,722.75
Department of Health,Leicestershire Partnership NHS Trust,06/08/21,NURSE - BAND 2 - AGENCY,Aston Ward (Bradgate Unit),HCL NURSING,HNSI0000732,684.60
Department of Health,Leicestershire Partnership NHS Trust,06/08/21,NURSE - BAND 5 - AGENCY,Aston Ward (Bradgate Unit),HCL NURSING,HNSI0000732,1040.21
Department of Health,Leicestershire Partnership NHS Trust,06/08/21,NURSE - BAND 2 - AGENCY,Beaumont Ward - Bradgate Unit,HCL NURSING,HNSI0000732,562.72
Department of Health,Leicestershire Partnership NHS Trust,06/08/21,NURSE - BAND 5 - AGENCY,Beaumont Ward - Bradgate Unit,HCL NURSING,HNSI0000732,1030.07
Department of Health,Leicestershire Partnership NHS Trust,06/08/21,NURSE - BAND 2 - AGENCY,Belvoir Psychiatric Intensive Care Unit,HCL NURSING,HNSI0000732,623.59
Department of Health,Leicestershire Partnership NHS Trust,06/08/21,NURSE - BAND 5 - AGENCY,Belvoir Psychiatric Intensive Care Unit,HCL NURSING,HNSI0000732,1370.05
Department of Health,Leicestershire Partnership NHS Trust,06/08/21,Nurse - Band 6 -Agency,City West CMHT MHSOP,HCL NURSING,HNSI0000732,1069.97
Department of Health,Leicestershire Partnership NHS Trust,06/08/21,NURSE - BAND 2 - AGENCY,Coleman Ward,HCL NURSING,HNSI0000732,22975.11
Department of Health,Leicestershire Partnership NHS Trust,06/08/21,NURSE - BAND 5 - AGENCY,Coleman Ward,HCL NURSING,HNSI0000732,7926.47
Department of Health,Leicestershire Partnership NHS Trust,06/08/21,NURSE - BAND 2 - AGENCY,Griffin Ward (HPC),HCL NURSING,HNSI0000732,349.46
Department of Health,Leicestershire Partnership NHS Trust,06/08/21,NURSE - BAND 5 - AGENCY,Griffin Ward (HPC),HCL NURSING,HNSI0000732,700.23
Department of Health,Leicestershire Partnership NHS Trust,06/08/21,NURSE - BAND 2 - AGENCY,Gwendolen Ward,HCL NURSING,HNSI0000732,182.71
Department of Health,Leicestershire Partnership NHS Trust,06/08/21,NURSE - BAND 2 - AGENCY,Heather Ward,HCL NURSING,HNSI0000732,349.46
Department of Health,Leicestershire Partnership NHS Trust,06/08/21,NURSE - BAND 2 - AGENCY,Kirby Ward,HCL NURSING,HNSI0000732,1496.33
Department of Health,Leicestershire Partnership NHS Trust,06/08/21,Nurse - Band 6 -Agency,Liaison & Diversion - Criminal Justice,HCL NURSING,HNSI0000732,1522.92
Department of Health,Leicestershire Partnership NHS Trust,06/08/21,NURSE - BAND 2 - AGENCY,Mill Lodge,HCL NURSING,HNSI0000732,2604.60
Department of Health,Leicestershire Partnership NHS Trust,06/08/21,NURSE - BAND 2 - AGENCY,Phoenix Ward (HPC),HCL NURSING,HNSI0000732,662.51
Department of Health,Leicestershire Partnership NHS Trust,06/08/21,NURSE - BAND 5 - AGENCY,Phoenix Ward (HPC),HCL NURSING,HNSI0000732,858.69
Department of Health,Leicestershire Partnership NHS Trust,06/08/21,NURSE - BAND 2 - AGENCY,Place Of Safety Assessment Unit,HCL NURSING,HNSI0000732,577.18
Department of Health,Leicestershire Partnership NHS Trust,06/08/21,NURSE - BAND 5 - AGENCY,Place Of Safety Assessment Unit,HCL NURSING,HNSI0000732,1105.55
Department of Health,Leicestershire Partnership NHS Trust,06/08/21,NURSE - BAND 5 - AGENCY,Stewart House,HCL NURSING,HNSI0000732,308.22
Department of Health,Leicestershire Partnership NHS Trust,06/08/21,NURSE - BAND 2 - AGENCY,Thornton Ward - Bradgate Unit,HCL NURSING,HNSI0000732,349.46
Department of Health,Leicestershire Partnership NHS Trust,06/08/21,NURSE - BAND 2 - AGENCY,Welford Ward,HCL NURSING,HNSI0000732,1752.12
Department of Health,Leicestershire Partnership NHS Trust,06/08/21,Nurse - Band 6 -Agency,CAMHS HUB / CAP,HCL SOCIAL CARE,HWSI0000730,11643.18
Department of Health,Leicestershire Partnership NHS Trust,06/08/21,Nurse - Band 6 -Agency,CAMHS Waiting List Monies,HCL SOCIAL CARE,HWSI0000730,13244.24
Department of Health,Leicestershire Partnership NHS Trust,06/08/21,Nurse - Band 6 -Agency,Crisis Response and Home Treatment,HCL SOCIAL CARE,HWSI0000730,1934.86
Department of Health,Leicestershire Partnership NHS Trust,06/08/21,Nurse - Band 6 -Agency,CAMHS HUB / CAP,HCL SOCIAL CARE,HWSI0000721,9361.25
Department of Health,Leicestershire Partnership NHS Trust,06/08/21,Nurse - Band 6 -Agency,CAMHS Waiting List Monies,HCL SOCIAL CARE,HWSI0000721,20037.26
Department of Health,Leicestershire Partnership NHS Trust,06/08/21,Nurse - Band 6 -Agency,Crisis Response and Home Treatment,HCL SOCIAL CARE,HWSI0000721,2765.76
Department of Health,Leicestershire Partnership NHS Trust,06/08/21,Nurse - Band 6 -Agency,CAMHS HUB / CAP,HCL SOCIAL CARE,HWSI0000706,13585.00
Department of Health,Leicestershire Partnership NHS Trust,06/08/21,Nurse - Band 6 -Agency,CAMHS Waiting List Monies,HCL SOCIAL CARE,HWSI0000706,15953.45
Department of Health,Leicestershire Partnership NHS Trust,06/08/21,Nurse - Band 6 -Agency,Crisis Response and Home Treatment,HCL SOCIAL CARE,HWSI0000706,87.42
Department of Health,Leicestershire Partnership NHS Trust,06/08/21,Nurse - Band 6 -Agency,CAMHS Waiting List Monies,HCL SOCIAL CARE,HWSI0000690,34264.57
Department of Health,Leicestershire Partnership NHS Trust,06/08/21,Nurse - Band 6 -Agency,CAMHS HUB / CAP,HCL SOCIAL CARE,HWSI0000682,9066.84
Department of Health,Leicestershire Partnership NHS Trust,06/08/21,Nurse - Band 6 -Agency,CAMHS Waiting List Monies,HCL SOCIAL CARE,HWSI0000682,15821.33
Department of Health,Leicestershire Partnership NHS Trust,06/08/21,Nurse - Band 6 -Agency,Crisis Response and Home Treatment,HCL SOCIAL CARE,HWSI0000682,2113.88
Department of Health,Leicestershire Partnership NHS Trust,06/08/21,NURSE - BAND 2 - AGENCY,CAMHS Inpatient Service,HCL NURSING,HNSI0000752,10170.64
Department of Health,Leicestershire Partnership NHS Trust,06/08/21,NURSE - BAND 5 - AGENCY,CAMHS Inpatient Service,HCL NURSING,HNSI0000752,1671.93
Department of Health,Leicestershire Partnership NHS Trust,06/08/21,NURSE - BAND 2 - AGENCY,CAMHS Outpatients,HCL NURSING,HNSI0000752,3455.84
Department of Health,Leicestershire Partnership NHS Trust,06/08/21,NURSE - BAND 5 - AGENCY,CAMHS Waiting List Monies,HCL NURSING,HNSI0000752,300.28
Department of Health,Leicestershire Partnership NHS Trust,06/08/21,Nurse - Band 6 -Agency,CAMHS Waiting List Monies,HCL NURSING,HNSI0000752,4721.76
Department of Health,Leicestershire Partnership NHS Trust,06/08/21,Nurse - Band 6 -Agency,CAMHS Young Peoples Team,HCL NURSING,HNSI0000752,1539.24
Department of Health,Leicestershire Partnership NHS Trust,06/08/21,NURSE - BAND 2 - AGENCY,Crisis Response and Home Treatment,HCL NURSING,HNSI0000752,405.44
Department of Health,Leicestershire Partnership NHS Trust,06/08/21,NURSE - BAND 2 - AGENCY,Langley Ward ED Inpatient Service,HCL NURSING,HNSI0000752,369.43
Department of Health,Leicestershire Partnership NHS Trust,06/08/21,NURSE - BAND 5 - AGENCY,Langley Ward ED Inpatient Service,HCL NURSING,HNSI0000752,1596.82
Department of Health,Leicestershire Partnership NHS Trust,06/08/21,NURSE - BAND 2 - AGENCY,CAMHS Inpatient Service,HCL NURSING,HNSI0000739,12379.60
Department of Health,Leicestershire Partnership NHS Trust,06/08/21,NURSE - BAND 5 - AGENCY,CAMHS Inpatient Service,HCL NURSING,HNSI0000739,733.15
Department of Health,Leicestershire Partnership NHS Trust,06/08/21,Nurse - Band 6 -Agency,CAMHS Waiting List Monies,HCL NURSING,HNSI0000739,3893.18
Department of Health,Leicestershire Partnership NHS Trust,06/08/21,NURSE - BAND 2 - AGENCY,Langley Ward ED Inpatient Service,HCL NURSING,HNSI0000739,1076.32
Department of Health,Leicestershire Partnership NHS Trust,06/08/21,NURSE - BAND 5 - AGENCY,Langley Ward ED Inpatient Service,HCL NURSING,HNSI0000739,3014.35
Department of Health,Leicestershire Partnership NHS Trust,09/08/21,NURSE - BAND 2 - AGENCY,Beechwood Ward,HCL NURSING,HNSI0000733,4359.71
Department of Health,Leicestershire Partnership NHS Trust,09/08/21,NURSE - BAND 5 - AGENCY,Beechwood Ward,HCL NURSING,HNSI0000733,1827.36
Department of Health,Leicestershire Partnership NHS Trust,09/08/21,NURSE - BAND 3 - AGENCY,CHS Phlebotomy Service,HCL NURSING,HNSI0000733,1443.69
Department of Health,Leicestershire Partnership NHS Trust,09/08/21,NURSE - BAND 5 - AGENCY,City Planned Care - East,HCL NURSING,HNSI0000733,12525.77
Department of Health,Leicestershire Partnership NHS Trust,09/08/21,NURSE - BAND 5 - AGENCY,City Planned Care - West,HCL NURSING,HNSI0000733,12216.51
Department of Health,Leicestershire Partnership NHS Trust,09/08/21,Nurse - Band 6 -Agency,City West CMHT MHSOP,HCL NURSING,HNSI0000733,1046.25
Department of Health,Leicestershire Partnership NHS Trust,09/08/21,NURSE - BAND 2 - AGENCY,Clarendon Ward,HCL NURSING,HNSI0000733,2112.57
Department of Health,Leicestershire Partnership NHS Trust,09/08/21,NURSE - BAND 5 - AGENCY,Clarendon Ward,HCL NURSING,HNSI0000733,2877.17
Department of Health,Leicestershire Partnership NHS Trust,09/08/21,NURSE - BAND 2 - AGENCY,Coalville Snibston Ward,HCL NURSING,HNSI0000733,1526.11
Department of Health,Leicestershire Partnership NHS Trust,09/08/21,NURSE - BAND 5 - AGENCY,Coalville Snibston Ward,HCL NURSING,HNSI0000733,4558.83
Department of Health,Leicestershire Partnership NHS Trust,09/08/21,NURSE - BAND 2 - AGENCY,Coalville Ward 2,HCL NURSING,HNSI0000733,1356.59
Department of Health,Leicestershire Partnership NHS Trust,09/08/21,NURSE - BAND 5 - AGENCY,Coalville Ward 2,HCL NURSING,HNSI0000733,1115.50
Department of Health,Leicestershire Partnership NHS Trust,09/08/21,NURSE - BAND 2 - AGENCY,Dalgliesh Ward,HCL NURSING,HNSI0000733,1317.43
Department of Health,Leicestershire Partnership NHS Trust,09/08/21,NURSE - BAND 2 - AGENCY,H&B Comm Hosp East Ward,HCL NURSING,HNSI0000733,4209.19
Department of Health,Leicestershire Partnership NHS Trust,09/08/21,NURSE - BAND 5 - AGENCY,H&B Comm Hosp East Ward,HCL NURSING,HNSI0000733,3529.49
Department of Health,Leicestershire Partnership NHS Trust,09/08/21,NURSE - BAND 2 - AGENCY,H&B Comm Hosp North Ward,HCL NURSING,HNSI0000733,3238.51
Department of Health,Leicestershire Partnership NHS Trust,09/08/21,NURSE - BAND 5 - AGENCY,H&B Comm Hosp North Ward,HCL NURSING,HNSI0000733,2929.24
Department of Health,Leicestershire Partnership NHS Trust,09/08/21,NURSE - BAND 5 - AGENCY,Lough Swithland Ward,HCL NURSING,HNSI0000733,3170.65
Department of Health,Leicestershire Partnership NHS Trust,09/08/21,NURSE - BAND 2 - AGENCY,Rutland Ward Nursing,HCL NURSING,HNSI0000733,1142.08
Department of Health,Leicestershire Partnership NHS Trust,09/08/21,NURSE - BAND 5 - AGENCY,Rutland Ward Nursing,HCL NURSING,HNSI0000733,525.35
Department of Health,Leicestershire Partnership NHS Trust,09/08/21,NURSE - BAND 2 - AGENCY,St Lukes Ward 3,HCL NURSING,HNSI0000733,344.03
Department of Health,Leicestershire Partnership NHS Trust,09/08/21,NURSE - BAND 2 - AGENCY,Wakerley Ward,HCL NURSING,HNSI0000733,1319.65
Department of Health,Leicestershire Partnership NHS Trust,09/08/21,NURSE - BAND 5 - AGENCY,Wakerley Ward,HCL NURSING,HNSI0000733,4454.48
Department of Health,Leicestershire Partnership NHS Trust,09/08/21,GP IT Expenditure,Area Team,SYNTAX CONSULTANCY LTD,1287,42000.00
Department of Health,Leicestershire Partnership NHS Trust,09/08/21,Crs_NHS_LT1y -Resus Inventory Supplied.,Balance Sheet Collection,SUPPLY CHAIN CO LTD,1122081339,27327.77
Department of Health,Leicestershire Partnership NHS Trust,09/08/21,Med Trainees - FY1,Medical Trainees,UHL NHS TRUST (RWE),L0252468,29416.67
Department of Health,Leicestershire Partnership NHS Trust,09/08/21,WIP Project Not in BS - Buildings excl Dwellings,Work in Progress,TILBURY DOUGLAS CONSTRUCTION LTD,TMP02322,58740.19
Department of Health,Leicestershire Partnership NHS Trust,09/08/21,Rent,"Syston Health Centre (New Building) (P127, LPT)",PHIP (5) LIMITED,LINV526257,37500.00
Department of Health,Leicestershire Partnership NHS Trust,10/08/21,HR / Payroll Services,HR Employment Services,LINCOLNSHIRE PART NHSFT(RP7),2000021374,29360.83
Department of Health,Leicestershire Partnership NHS Trust,10/08/21,PropCo Estates Management,Merlyn Vaz Centre (CHP),COMM HLTH PARTNERSHIPS LTD,0060208184,57676.28
Department of Health,Leicestershire Partnership NHS Trust,10/08/21,WIP Project Not in BS - Buildings excl Dwellings,Work in Progress,TILBURY DOUGLAS CONSTRUCTION LTD,TMP02333,43395.92
Department of Health,Leicestershire Partnership NHS Trust,10/08/21,WIP Project Not in BS - Buildings excl Dwellings,Work in Progress,TILBURY DOUGLAS CONSTRUCTION LTD,TMP02324,88899.13
Department of Health,Leicestershire Partnership NHS Trust,10/08/21,WIP Project Not in BS - Buildings excl Dwellings,Work in Progress,TILBURY DOUGLAS CONSTRUCTION LTD,TMP02321,42010.76
Department of Health,Leicestershire Partnership NHS Trust,10/08/21,WIP Project Not in BS - Buildings excl Dwellings,Work in Progress,TILBURY DOUGLAS CONSTRUCTION LTD,TMP02328,36112.76
Department of Health,Leicestershire Partnership NHS Trust,12/08/21,Medical Equipment Repairs / Maintenance,Respiratory Service,SPIRIT DIGITAL LTD,1013,240000.00
Department of Health,Leicestershire Partnership NHS Trust,13/08/21,Insurance Costs,Chief Executives Office,NHS LITIGATION AUTHORITY,SICX406197,165217.80
Department of Health,Leicestershire Partnership NHS Trust,13/08/21,Nurse - Band 6 -Agency,CAMHS HUB / CAP,HCL SOCIAL CARE,HWSI0000746,11619.43
Department of Health,Leicestershire Partnership NHS Trust,13/08/21,Nurse - Band 6 -Agency,CAMHS Waiting List Monies,HCL SOCIAL CARE,HWSI0000746,19685.67
Department of Health,Leicestershire Partnership NHS Trust,13/08/21,Nurse - Band 6 -Agency,Crisis Response and Home Treatment,HCL SOCIAL CARE,HWSI0000746,1519.41
Department of Health,Leicestershire Partnership NHS Trust,13/08/21,Nurse - Band 6 -Agency,AMH - Central Access Point,HCL NURSING,HNSI0000758,3197.35
Department of Health,Leicestershire Partnership NHS Trust,13/08/21,Nurse - Band 6 -Agency,Adult City East CMHT - Merlyn Vaz,HCL NURSING,HNSI0000758,2178.99
Department of Health,Leicestershire Partnership NHS Trust,13/08/21,Nurse - Band 6 -Agency,Adult County Charnwood CMHT - Loughborough Base,HCL NURSING,HNSI0000758,2446.97
Department of Health,Leicestershire Partnership NHS Trust,13/08/21,Nurse - Band 6 -Agency,Adult County West Leicestershire CMHT,HCL NURSING,HNSI0000758,1069.97
Department of Health,Leicestershire Partnership NHS Trust,13/08/21,NURSE - BAND 2 - AGENCY,Agnes Unit Management,HCL NURSING,HNSI0000758,7268.34
Department of Health,Leicestershire Partnership NHS Trust,13/08/21,NURSE - BAND 5 - AGENCY,Agnes Unit Management,HCL NURSING,HNSI0000758,12806.01
Department of Health,Leicestershire Partnership NHS Trust,13/08/21,NURSE - BAND 2 - AGENCY,Ashby Ward (Bradgate Unit),HCL NURSING,HNSI0000758,1675.46
Department of Health,Leicestershire Partnership NHS Trust,13/08/21,NURSE - BAND 5 - AGENCY,Ashby Ward (Bradgate Unit),HCL NURSING,HNSI0000758,1803.70
Department of Health,Leicestershire Partnership NHS Trust,13/08/21,NURSE - BAND 2 - AGENCY,Aston Ward (Bradgate Unit),HCL NURSING,HNSI0000758,946.68
Department of Health,Leicestershire Partnership NHS Trust,13/08/21,NURSE - BAND 5 - AGENCY,Aston Ward (Bradgate Unit),HCL NURSING,HNSI0000758,1115.50
Department of Health,Leicestershire Partnership NHS Trust,13/08/21,NURSE - BAND 2 - AGENCY,Beaumont Ward - Bradgate Unit,HCL NURSING,HNSI0000758,4450.55
Department of Health,Leicestershire Partnership NHS Trust,13/08/21,NURSE - BAND 5 - AGENCY,Beaumont Ward - Bradgate Unit,HCL NURSING,HNSI0000758,2397.51
Department of Health,Leicestershire Partnership NHS Trust,13/08/21,NURSE - BAND 2 - AGENCY,Belvoir Psychiatric Intensive Care Unit,HCL NURSING,HNSI0000758,888.20
Department of Health,Leicestershire Partnership NHS Trust,13/08/21,NURSE - BAND 5 - AGENCY,Belvoir Psychiatric Intensive Care Unit,HCL NURSING,HNSI0000758,1699.89
Department of Health,Leicestershire Partnership NHS Trust,13/08/21,NURSE - BAND 2 - AGENCY,Cedar (Willows),HCL NURSING,HNSI0000758,145.19
Department of Health,Leicestershire Partnership NHS Trust,13/08/21,NURSE - BAND 2 - AGENCY,Coleman Ward,HCL NURSING,HNSI0000758,9740.03
Department of Health,Leicestershire Partnership NHS Trust,13/08/21,NURSE - BAND 5 - AGENCY,Coleman Ward,HCL NURSING,HNSI0000758,10236.99
Department of Health,Leicestershire Partnership NHS Trust,13/08/21,NURSE - BAND 2 - AGENCY,Griffin Ward (HPC),HCL NURSING,HNSI0000758,3793.38
Department of Health,Leicestershire Partnership NHS Trust,13/08/21,NURSE - BAND 2 - AGENCY,Heather Ward,HCL NURSING,HNSI0000758,1726.17
Department of Health,Leicestershire Partnership NHS Trust,13/08/21,NURSE - BAND 5 - AGENCY,Heather Ward,HCL NURSING,HNSI0000758,1869.76
Department of Health,Leicestershire Partnership NHS Trust,13/08/21,NURSE - BAND 2 - AGENCY,Kirby Ward,HCL NURSING,HNSI0000758,2890.83
Department of Health,Leicestershire Partnership NHS Trust,13/08/21,Nurse - Band 6 -Agency,Liaison & Diversion - Criminal Justice,HCL NURSING,HNSI0000758,1522.92
Department of Health,Leicestershire Partnership NHS Trust,13/08/21,NURSE - BAND 2 - AGENCY,Mill Lodge,HCL NURSING,HNSI0000758,5577.38
Department of Health,Leicestershire Partnership NHS Trust,13/08/21,NURSE - BAND 5 - AGENCY,Mill Lodge,HCL NURSING,HNSI0000758,3957.12
Department of Health,Leicestershire Partnership NHS Trust,13/08/21,NURSE - BAND 2 - AGENCY,Phoenix Ward (HPC),HCL NURSING,HNSI0000758,2109.01
Department of Health,Leicestershire Partnership NHS Trust,13/08/21,NURSE - BAND 5 - AGENCY,Phoenix Ward (HPC),HCL NURSING,HNSI0000758,372.67
Department of Health,Leicestershire Partnership NHS Trust,13/08/21,NURSE - BAND 2 - AGENCY,Place Of Safety Assessment Unit,HCL NURSING,HNSI0000758,222.15
Department of Health,Leicestershire Partnership NHS Trust,13/08/21,NURSE - BAND 5 - AGENCY,Place Of Safety Assessment Unit,HCL NURSING,HNSI0000758,989.51
Department of Health,Leicestershire Partnership NHS Trust,13/08/21,NURSE - BAND 2 - AGENCY,Thornton Ward - Bradgate Unit,HCL NURSING,HNSI0000758,174.73
Department of Health,Leicestershire Partnership NHS Trust,13/08/21,NURSE - BAND 5 - AGENCY,Thornton Ward - Bradgate Unit,HCL NURSING,HNSI0000758,392.91
Department of Health,Leicestershire Partnership NHS Trust,13/08/21,NURSE - BAND 2 - AGENCY,Watermead Ward (Bradgate Unit),HCL NURSING,HNSI0000758,1057.65
Department of Health,Leicestershire Partnership NHS Trust,13/08/21,NURSE - BAND 2 - AGENCY,Welford Ward,HCL NURSING,HNSI0000758,1114.76
Department of Health,Leicestershire Partnership NHS Trust,13/08/21,NURSE - BAND 5 - AGENCY,Welford Ward,HCL NURSING,HNSI0000758,772.25
Department of Health,Leicestershire Partnership NHS Trust,16/08/21,Crs_NHS_LT1y -Resus Inventory Supplied.,Balance Sheet Collection,SUPPLY CHAIN CO LTD,1122086032,28083.35
Department of Health,Leicestershire Partnership NHS Trust,16/08/21,Computer Software,HIS Programme & Change,SWIFTQUEUE TECH LTD,10343,50266.90
Department of Health,Leicestershire Partnership NHS Trust,17/08/21,NURSE - BAND 2 - AGENCY,Beechwood Ward,HCL NURSING,HNSI0000759,6359.86
Department of Health,Leicestershire Partnership NHS Trust,17/08/21,NURSE - BAND 5 - AGENCY,Beechwood Ward,HCL NURSING,HNSI0000759,3205.59
Department of Health,Leicestershire Partnership NHS Trust,17/08/21,NURSE - BAND 3 - AGENCY,CHS Phlebotomy Service,HCL NURSING,HNSI0000759,181.93
Department of Health,Leicestershire Partnership NHS Trust,17/08/21,NURSE - BAND 5 - AGENCY,City Planned Care - East,HCL NURSING,HNSI0000759,12589.23
Department of Health,Leicestershire Partnership NHS Trust,17/08/21,NURSE - BAND 5 - AGENCY,City Planned Care - West,HCL NURSING,HNSI0000759,12251.05
Department of Health,Leicestershire Partnership NHS Trust,17/08/21,NURSE - BAND 2 - AGENCY,Clarendon Ward,HCL NURSING,HNSI0000759,2209.68
Department of Health,Leicestershire Partnership NHS Trust,17/08/21,NURSE - BAND 5 - AGENCY,Clarendon Ward,HCL NURSING,HNSI0000759,8269.38
Department of Health,Leicestershire Partnership NHS Trust,17/08/21,NURSE - BAND 2 - AGENCY,Coalville Snibston Ward,HCL NURSING,HNSI0000759,1772.65
Department of Health,Leicestershire Partnership NHS Trust,17/08/21,NURSE - BAND 5 - AGENCY,Coalville Snibston Ward,HCL NURSING,HNSI0000759,3679.00
Department of Health,Leicestershire Partnership NHS Trust,17/08/21,NURSE - BAND 2 - AGENCY,Coalville Ward 2,HCL NURSING,HNSI0000759,862.38
Department of Health,Leicestershire Partnership NHS Trust,17/08/21,NURSE - BAND 5 - AGENCY,Coalville Ward 2,HCL NURSING,HNSI0000759,900.90
Department of Health,Leicestershire Partnership NHS Trust,17/08/21,NURSE - BAND 2 - AGENCY,Dalgliesh Ward,HCL NURSING,HNSI0000759,1415.02
Department of Health,Leicestershire Partnership NHS Trust,17/08/21,NURSE - BAND 5 - AGENCY,Dalgliesh Ward,HCL NURSING,HNSI0000759,2917.30
Department of Health,Leicestershire Partnership NHS Trust,17/08/21,NURSE - BAND 2 - AGENCY,H&B Comm Hosp East Ward,HCL NURSING,HNSI0000759,4221.51
Department of Health,Leicestershire Partnership NHS Trust,17/08/21,NURSE - BAND 5 - AGENCY,H&B Comm Hosp East Ward,HCL NURSING,HNSI0000759,4025.07
Department of Health,Leicestershire Partnership NHS Trust,17/08/21,NURSE - BAND 2 - AGENCY,H&B Comm Hosp North Ward,HCL NURSING,HNSI0000759,7089.30
Department of Health,Leicestershire Partnership NHS Trust,17/08/21,NURSE - BAND 5 - AGENCY,H&B Comm Hosp North Ward,HCL NURSING,HNSI0000759,3041.61
Department of Health,Leicestershire Partnership NHS Trust,17/08/21,NURSE - BAND 2 - AGENCY,Lough Swithland Ward,HCL NURSING,HNSI0000759,1413.87
Department of Health,Leicestershire Partnership NHS Trust,17/08/21,NURSE - BAND 5 - AGENCY,Lough Swithland Ward,HCL NURSING,HNSI0000759,2535.50
Department of Health,Leicestershire Partnership NHS Trust,17/08/21,NURSE - BAND 2 - AGENCY,Rutland Ward Nursing,HCL NURSING,HNSI0000759,1683.46
Department of Health,Leicestershire Partnership NHS Trust,17/08/21,NURSE - BAND 5 - AGENCY,Rutland Ward Nursing,HCL NURSING,HNSI0000759,779.39
Department of Health,Leicestershire Partnership NHS Trust,17/08/21,NURSE - BAND 2 - AGENCY,St Lukes Stroke Ward,HCL NURSING,HNSI0000759,449.27
Department of Health,Leicestershire Partnership NHS Trust,17/08/21,NURSE - BAND 5 - AGENCY,St Lukes Stroke Ward,HCL NURSING,HNSI0000759,1618.34
Department of Health,Leicestershire Partnership NHS Trust,17/08/21,NURSE - BAND 2 - AGENCY,St Lukes Ward 3,HCL NURSING,HNSI0000759,2110.74
Department of Health,Leicestershire Partnership NHS Trust,17/08/21,NURSE - BAND 5 - AGENCY,St Lukes Ward 3,HCL NURSING,HNSI0000759,1361.20
Department of Health,Leicestershire Partnership NHS Trust,17/08/21,NURSE - BAND 2 - AGENCY,Wakerley Ward,HCL NURSING,HNSI0000759,4433.08
Department of Health,Leicestershire Partnership NHS Trust,17/08/21,NURSE - BAND 5 - AGENCY,Wakerley Ward,HCL NURSING,HNSI0000759,7780.36
Department of Health,Leicestershire Partnership NHS Trust,17/08/21,NURSE - BAND 2 - AGENCY,Beechwood Ward,HCL NURSING,HNSI0000755,4777.19
Department of Health,Leicestershire Partnership NHS Trust,17/08/21,NURSE - BAND 5 - AGENCY,Beechwood Ward,HCL NURSING,HNSI0000755,1548.23
Department of Health,Leicestershire Partnership NHS Trust,17/08/21,NURSE - BAND 5 - AGENCY,City Planned Care - East,HCL NURSING,HNSI0000755,12812.33
Department of Health,Leicestershire Partnership NHS Trust,17/08/21,NURSE - BAND 5 - AGENCY,City Planned Care - West,HCL NURSING,HNSI0000755,10787.33
Department of Health,Leicestershire Partnership NHS Trust,17/08/21,NURSE - BAND 2 - AGENCY,Clarendon Ward,HCL NURSING,HNSI0000755,2871.23
Department of Health,Leicestershire Partnership NHS Trust,17/08/21,NURSE - BAND 5 - AGENCY,Clarendon Ward,HCL NURSING,HNSI0000755,12890.42
Department of Health,Leicestershire Partnership NHS Trust,17/08/21,NURSE - BAND 2 - AGENCY,Coalville Snibston Ward,HCL NURSING,HNSI0000755,2338.30
Department of Health,Leicestershire Partnership NHS Trust,17/08/21,NURSE - BAND 5 - AGENCY,Coalville Snibston Ward,HCL NURSING,HNSI0000755,2244.23
Department of Health,Leicestershire Partnership NHS Trust,17/08/21,NURSE - BAND 2 - AGENCY,Coalville Ward 2,HCL NURSING,HNSI0000755,673.06
Department of Health,Leicestershire Partnership NHS Trust,17/08/21,NURSE - BAND 5 - AGENCY,Coalville Ward 2,HCL NURSING,HNSI0000755,1957.69
Department of Health,Leicestershire Partnership NHS Trust,17/08/21,NURSE - BAND 2 - AGENCY,Dalgliesh Ward,HCL NURSING,HNSI0000755,3824.41
Department of Health,Leicestershire Partnership NHS Trust,17/08/21,NURSE - BAND 5 - AGENCY,Dalgliesh Ward,HCL NURSING,HNSI0000755,2902.49
Department of Health,Leicestershire Partnership NHS Trust,17/08/21,NURSE - BAND 2 - AGENCY,H&B Comm Hosp East Ward,HCL NURSING,HNSI0000755,3684.45
Department of Health,Leicestershire Partnership NHS Trust,17/08/21,NURSE - BAND 5 - AGENCY,H&B Comm Hosp East Ward,HCL NURSING,HNSI0000755,4797.67
Department of Health,Leicestershire Partnership NHS Trust,17/08/21,NURSE - BAND 2 - AGENCY,H&B Comm Hosp North Ward,HCL NURSING,HNSI0000755,6680.16
Department of Health,Leicestershire Partnership NHS Trust,17/08/21,NURSE - BAND 5 - AGENCY,H&B Comm Hosp North Ward,HCL NURSING,HNSI0000755,5426.28
Department of Health,Leicestershire Partnership NHS Trust,17/08/21,NURSE - BAND 5 - AGENCY,Lough Swithland Ward,HCL NURSING,HNSI0000755,2939.07
Department of Health,Leicestershire Partnership NHS Trust,17/08/21,NURSE - BAND 5 - AGENCY,Rutland Ward Nursing,HCL NURSING,HNSI0000755,419.10
Department of Health,Leicestershire Partnership NHS Trust,17/08/21,NURSE - BAND 2 - AGENCY,St Lukes Stroke Ward,HCL NURSING,HNSI0000755,1976.98
Department of Health,Leicestershire Partnership NHS Trust,17/08/21,NURSE - BAND 5 - AGENCY,St Lukes Stroke Ward,HCL NURSING,HNSI0000755,715.89
Department of Health,Leicestershire Partnership NHS Trust,17/08/21,NURSE - BAND 2 - AGENCY,St Lukes Ward 3,HCL NURSING,HNSI0000755,2156.38
Department of Health,Leicestershire Partnership NHS Trust,17/08/21,NURSE - BAND 5 - AGENCY,St Lukes Ward 3,HCL NURSING,HNSI0000755,1869.29
Department of Health,Leicestershire Partnership NHS Trust,17/08/21,NURSE - BAND 2 - AGENCY,Wakerley Ward,HCL NURSING,HNSI0000755,2983.44
Department of Health,Leicestershire Partnership NHS Trust,17/08/21,NURSE - BAND 5 - AGENCY,Wakerley Ward,HCL NURSING,HNSI0000755,5111.64
Department of Health,Leicestershire Partnership NHS Trust,18/08/21,Photocopying,Estates & Facilities Central,LEXMARK INTERNATIONAL LTD,900650301478,33960.71
Department of Health,Leicestershire Partnership NHS Trust,18/08/21,WIP Project Not in BS - Information Technology,Work in Progress,HUMBER  NHSFT  (RV9),59890104,188000.00
Department of Health,Leicestershire Partnership NHS Trust,18/08/21,Healthcare Services / Recharges from Non-NHS Bodies,Adult Eating Disorder Collaborative,RIVERDALE GRANGE LIMITED,825,55000.00
Department of Health,Leicestershire Partnership NHS Trust,20/08/21,Gas,"Beaumont Leys Health Centre (P94, LPT)",TOTAL GAS & POWER LTD,245070358/21,319.85
Department of Health,Leicestershire Partnership NHS Trust,20/08/21,Gas,"Bennion Centre (including Forest Grange Day Unit) (P8, LPT)",TOTAL GAS & POWER LTD,245070358/21,1936.36
Department of Health,Leicestershire Partnership NHS Trust,20/08/21,Gas,"Bradgate Unit (including Glenvale day Unit) (P7, LPT)",TOTAL GAS & POWER LTD,245070358/21,2475.37
Department of Health,Leicestershire Partnership NHS Trust,20/08/21,Gas,Bridge Park Plaza - First Floor (LPT),TOTAL GAS & POWER LTD,245070358/21,571.45
Department of Health,Leicestershire Partnership NHS Trust,20/08/21,Gas,"Bridge Park Road - Units 2 and 3 (P148, LPT)",TOTAL GAS & POWER LTD,245070358/21,138.62
Department of Health,Leicestershire Partnership NHS Trust,20/08/21,Gas,"Coalville Community Hospital (P138, LPT)",TOTAL GAS & POWER LTD,245070358/21,2661.60
Department of Health,Leicestershire Partnership NHS Trust,20/08/21,Gas,"Coalville Health Centre (P121, LPT)",TOTAL GAS & POWER LTD,245070358/21,162.16
Department of Health,Leicestershire Partnership NHS Trust,20/08/21,Gas,"Evington Centre (P6, LPT)",TOTAL GAS & POWER LTD,245070358/21,549.74
Department of Health,Leicestershire Partnership NHS Trust,20/08/21,Gas,"Farm Lodge (P34, LPT)",TOTAL GAS & POWER LTD,245070358/21,81.83
Department of Health,Leicestershire Partnership NHS Trust,20/08/21,Gas,"Feilding Palmer Hospital (Lutterworth) (P131, LPT)",TOTAL GAS & POWER LTD,245070358/21,681.72
Department of Health,Leicestershire Partnership NHS Trust,20/08/21,Gas,"Frith Cottages 3 & 4 (P36, LPT)",TOTAL GAS & POWER LTD,245070358/21,53.93
Department of Health,Leicestershire Partnership NHS Trust,20/08/21,Gas,HIS,TOTAL GAS & POWER LTD,245070358/21,31.32
Department of Health,Leicestershire Partnership NHS Trust,20/08/21,Gas,"Hawthorne Centre - Coalville (P14, LPT)",TOTAL GAS & POWER LTD,245070358/21,121.41
Department of Health,Leicestershire Partnership NHS Trust,20/08/21,Gas,"Hinckley and Bosworth Community Hospital (Sunnyside) (P133, LPT)",TOTAL GAS & POWER LTD,245070358/21,2452.90
Department of Health,Leicestershire Partnership NHS Trust,20/08/21,Gas,"Hynca Lodge (P33, LPT)",TOTAL GAS & POWER LTD,245070358/21,139.59
Department of Health,Leicestershire Partnership NHS Trust,20/08/21,Gas,"LGH - Gwendolen House (P4, LPT)",TOTAL GAS & POWER LTD,245070358/21,641.02
Department of Health,Leicestershire Partnership NHS Trust,20/08/21,Gas,"Loughborough Hospital (P136, LPT)",TOTAL GAS & POWER LTD,245070358/21,5224.97
Department of Health,Leicestershire Partnership NHS Trust,20/08/21,Gas,Mawson House (LPT),TOTAL GAS & POWER LTD,245070358/21,54.75
Department of Health,Leicestershire Partnership NHS Trust,20/08/21,Gas,"Mett Centre (P49, LPT)",TOTAL GAS & POWER LTD,245070358/21,123.73
Department of Health,Leicestershire Partnership NHS Trust,20/08/21,Gas,"Narborough Health Centre (P117, LPT)",TOTAL GAS & POWER LTD,245070358/21,134.06
Department of Health,Leicestershire Partnership NHS Trust,20/08/21,Gas,"Neville Centre - LGH (was DSC) (P147, LPT)",TOTAL GAS & POWER LTD,245070358/21,351.61
Department of Health,Leicestershire Partnership NHS Trust,20/08/21,Gas,"OSL House (P54, LPT)",TOTAL GAS & POWER LTD,245070358/21,171.95
Department of Health,Leicestershire Partnership NHS Trust,20/08/21,Gas,"Orchard Resource Centre (P15, LPT)",TOTAL GAS & POWER LTD,245070358/21,141.87
Department of Health,Leicestershire Partnership NHS Trust,20/08/21,Gas,"Rubicon Close 3 (P56, LPT)",TOTAL GAS & POWER LTD,245070358/21,54.28
Department of Health,Leicestershire Partnership NHS Trust,20/08/21,Gas,"Rutland Memorial Hospital (P134, LPT)",TOTAL GAS & POWER LTD,245070358/21,532.30
Department of Health,Leicestershire Partnership NHS Trust,20/08/21,Gas,"Shepshed Health Centre (P123, LPT)",TOTAL GAS & POWER LTD,245070358/21,156.00
Department of Health,Leicestershire Partnership NHS Trust,20/08/21,Gas,"Springfield Road Health Centre (P92, LPT)",TOTAL GAS & POWER LTD,245070358/21,111.51
Department of Health,Leicestershire Partnership NHS Trust,20/08/21,Gas,"Stewart House (P61, LPT)",TOTAL GAS & POWER LTD,245070358/21,1344.97
Department of Health,Leicestershire Partnership NHS Trust,20/08/21,Gas,"Swithland House - London Road 352 (P44, LPT)",TOTAL GAS & POWER LTD,245070358/21,295.33
Department of Health,Leicestershire Partnership NHS Trust,20/08/21,Gas,"The Agnes Unit (AKA Assessment and Treatment Centre) (P85, LPT)",TOTAL GAS & POWER LTD,245070358/21,1057.82
Department of Health,Leicestershire Partnership NHS Trust,20/08/21,Gas,The Beacon,TOTAL GAS & POWER LTD,245070358/21,982.97
Department of Health,Leicestershire Partnership NHS Trust,20/08/21,Gas,"The Cedars (P19, LPT)",TOTAL GAS & POWER LTD,245070358/21,84.83
Department of Health,Leicestershire Partnership NHS Trust,20/08/21,Gas,"The Grange 1 (P4, LPT)",TOTAL GAS & POWER LTD,245070358/21,95.30
Department of Health,Leicestershire Partnership NHS Trust,20/08/21,Gas,"The Grange 2 (P41, LPT)",TOTAL GAS & POWER LTD,245070358/21,71.76
Department of Health,Leicestershire Partnership NHS Trust,20/08/21,Gas,"The Willows - Cordelia Close (P22, LPT)",TOTAL GAS & POWER LTD,245070358/21,1060.45
Department of Health,Leicestershire Partnership NHS Trust,20/08/21,Gas,"Valentine Centre (P3, LPT)",TOTAL GAS & POWER LTD,245070358/21,982.28
Department of Health,Leicestershire Partnership NHS Trust,20/08/21,Gas,"Westcotes Group -Westcotes House (P78, LPT)",TOTAL GAS & POWER LTD,245070358/21,422.47
Department of Health,Leicestershire Partnership NHS Trust,20/08/21,Gas,"Winstanley Drive Health Centre (P8, LPT)",TOTAL GAS & POWER LTD,245070358/21,151.49
Department of Health,Leicestershire Partnership NHS Trust,20/08/21,Med GP Trainees,Medical Trainees,ST.HELENS & KNOWSLEY NHS TRUST,16807479,75000.00
Department of Health,Leicestershire Partnership NHS Trust,23/08/21,Nurse - Band 6 -Agency,AMH - Central Access Point,HCL NURSING,HNSI0000767,2143.42
Department of Health,Leicestershire Partnership NHS Trust,23/08/21,Nurse - Band 6 -Agency,Adult City East CMHT - Merlyn Vaz,HCL NURSING,HNSI0000767,272.03
Department of Health,Leicestershire Partnership NHS Trust,23/08/21,Nurse - Band 6 -Agency,Adult County Charnwood CMHT - Loughborough Base,HCL NURSING,HNSI0000767,344.25
Department of Health,Leicestershire Partnership NHS Trust,23/08/21,NURSE - BAND 2 - AGENCY,Agnes Unit Management,HCL NURSING,HNSI0000767,5505.28
Department of Health,Leicestershire Partnership NHS Trust,23/08/21,NURSE - BAND 5 - AGENCY,Agnes Unit Management,HCL NURSING,HNSI0000767,5775.53
Department of Health,Leicestershire Partnership NHS Trust,23/08/21,NURSE - BAND 2 - AGENCY,Ashby Ward (Bradgate Unit),HCL NURSING,HNSI0000767,719.71
Department of Health,Leicestershire Partnership NHS Trust,23/08/21,NURSE - BAND 2 - AGENCY,Aston Ward (Bradgate Unit),HCL NURSING,HNSI0000767,398.32
Department of Health,Leicestershire Partnership NHS Trust,23/08/21,NURSE - BAND 5 - AGENCY,Aston Ward (Bradgate Unit),HCL NURSING,HNSI0000767,1690.34
Department of Health,Leicestershire Partnership NHS Trust,23/08/21,NURSE - BAND 2 - AGENCY,Beaumont Ward - Bradgate Unit,HCL NURSING,HNSI0000767,2263.58
Department of Health,Leicestershire Partnership NHS Trust,23/08/21,NURSE - BAND 5 - AGENCY,Beaumont Ward - Bradgate Unit,HCL NURSING,HNSI0000767,1821.74
Department of Health,Leicestershire Partnership NHS Trust,23/08/21,NURSE - BAND 2 - AGENCY,Beechwood Ward,HCL NURSING,HNSI0000767,1688.62
Department of Health,Leicestershire Partnership NHS Trust,23/08/21,NURSE - BAND 5 - AGENCY,Beechwood Ward,HCL NURSING,HNSI0000767,290.00
Department of Health,Leicestershire Partnership NHS Trust,23/08/21,NURSE - BAND 2 - AGENCY,Belvoir Psychiatric Intensive Care Unit,HCL NURSING,HNSI0000767,1079.79
Department of Health,Leicestershire Partnership NHS Trust,23/08/21,NURSE - BAND 5 - AGENCY,Belvoir Psychiatric Intensive Care Unit,HCL NURSING,HNSI0000767,999.65
Department of Health,Leicestershire Partnership NHS Trust,23/08/21,NURSE - BAND 2 - AGENCY,CAMHS Inpatient Service,HCL NURSING,HNSI0000767,4782.49
Department of Health,Leicestershire Partnership NHS Trust,23/08/21,Nurse - Band 6 -Agency,CAMHS Waiting List Monies,HCL NURSING,HNSI0000767,830.90
Department of Health,Leicestershire Partnership NHS Trust,23/08/21,Nurse - Band 6 -Agency,CAMHS Young Peoples Team,HCL NURSING,HNSI0000767,688.50
Department of Health,Leicestershire Partnership NHS Trust,23/08/21,NURSE - BAND 2 - AGENCY,Cedar (Willows),HCL NURSING,HNSI0000767,269.49
Department of Health,Leicestershire Partnership NHS Trust,23/08/21,NURSE - BAND 5 - AGENCY,City Planned Care - East,HCL NURSING,HNSI0000767,4337.87
Department of Health,Leicestershire Partnership NHS Trust,23/08/21,NURSE - BAND 5 - AGENCY,City Planned Care - West,HCL NURSING,HNSI0000767,5184.80
Department of Health,Leicestershire Partnership NHS Trust,23/08/21,Nurse - Band 6 -Agency,City West CMHT MHSOP,HCL NURSING,HNSI0000767,641.98
Department of Health,Leicestershire Partnership NHS Trust,23/08/21,NURSE - BAND 2 - AGENCY,Clarendon Ward,HCL NURSING,HNSI0000767,1505.67
Department of Health,Leicestershire Partnership NHS Trust,23/08/21,NURSE - BAND 5 - AGENCY,Clarendon Ward,HCL NURSING,HNSI0000767,3103.80
Department of Health,Leicestershire Partnership NHS Trust,23/08/21,NURSE - BAND 2 - AGENCY,Coalville Snibston Ward,HCL NURSING,HNSI0000767,495.28
Department of Health,Leicestershire Partnership NHS Trust,23/08/21,NURSE - BAND 5 - AGENCY,Coalville Snibston Ward,HCL NURSING,HNSI0000767,2572.05
Department of Health,Leicestershire Partnership NHS Trust,23/08/21,NURSE - BAND 2 - AGENCY,Coalville Ward 2,HCL NURSING,HNSI0000767,219.46
Department of Health,Leicestershire Partnership NHS Trust,23/08/21,NURSE - BAND 2 - AGENCY,Coleman Ward,HCL NURSING,HNSI0000767,2990.12
Department of Health,Leicestershire Partnership NHS Trust,23/08/21,NURSE - BAND 5 - AGENCY,Coleman Ward,HCL NURSING,HNSI0000767,5169.38
Department of Health,Leicestershire Partnership NHS Trust,23/08/21,NURSE - BAND 2 - AGENCY,Dalgliesh Ward,HCL NURSING,HNSI0000767,1966.34
Department of Health,Leicestershire Partnership NHS Trust,23/08/21,NURSE - BAND 2 - AGENCY,Griffin Ward (HPC),HCL NURSING,HNSI0000767,1916.30
Department of Health,Leicestershire Partnership NHS Trust,23/08/21,NURSE - BAND 5 - AGENCY,Griffin Ward (HPC),HCL NURSING,HNSI0000767,146.55
Department of Health,Leicestershire Partnership NHS Trust,23/08/21,NURSE - BAND 2 - AGENCY,Gwendolen Ward,HCL NURSING,HNSI0000767,1076.15
Department of Health,Leicestershire Partnership NHS Trust,23/08/21,NURSE - BAND 2 - AGENCY,H&B Comm Hosp East Ward,HCL NURSING,HNSI0000767,1252.30
Department of Health,Leicestershire Partnership NHS Trust,23/08/21,NURSE - BAND 5 - AGENCY,H&B Comm Hosp East Ward,HCL NURSING,HNSI0000767,525.35
Department of Health,Leicestershire Partnership NHS Trust,23/08/21,NURSE - BAND 2 - AGENCY,H&B Comm Hosp North Ward,HCL NURSING,HNSI0000767,3964.07
Department of Health,Leicestershire Partnership NHS Trust,23/08/21,NURSE - BAND 5 - AGENCY,H&B Comm Hosp North Ward,HCL NURSING,HNSI0000767,419.85
Department of Health,Leicestershire Partnership NHS Trust,23/08/21,NURSE - BAND 2 - AGENCY,Heather Ward,HCL NURSING,HNSI0000767,786.31
Department of Health,Leicestershire Partnership NHS Trust,23/08/21,NURSE - BAND 5 - AGENCY,Heather Ward,HCL NURSING,HNSI0000767,449.54
Department of Health,Leicestershire Partnership NHS Trust,23/08/21,NURSE - BAND 2 - AGENCY,Kirby Ward,HCL NURSING,HNSI0000767,1246.82
Department of Health,Leicestershire Partnership NHS Trust,23/08/21,NURSE - BAND 5 - AGENCY,Kirby Ward,HCL NURSING,HNSI0000767,738.91
Department of Health,Leicestershire Partnership NHS Trust,23/08/21,NURSE - BAND 5 - AGENCY,Langley Ward ED Inpatient Service,HCL NURSING,HNSI0000767,799.85
Department of Health,Leicestershire Partnership NHS Trust,23/08/21,Nurse - Band 6 -Agency,Liaison & Diversion - Criminal Justice,HCL NURSING,HNSI0000767,350.03
Department of Health,Leicestershire Partnership NHS Trust,23/08/21,NURSE - BAND 5 - AGENCY,Lough Swithland Ward,HCL NURSING,HNSI0000767,514.85
Department of Health,Leicestershire Partnership NHS Trust,23/08/21,NURSE - BAND 2 - AGENCY,Maple Ward,HCL NURSING,HNSI0000767,174.73
Department of Health,Leicestershire Partnership NHS Trust,23/08/21,NURSE - BAND 2 - AGENCY,Mill Lodge,HCL NURSING,HNSI0000767,3410.60
Department of Health,Leicestershire Partnership NHS Trust,23/08/21,NURSE - BAND 5 - AGENCY,Mill Lodge,HCL NURSING,HNSI0000767,1515.54
Department of Health,Leicestershire Partnership NHS Trust,23/08/21,NURSE - BAND 2 - AGENCY,Phoenix Ward (HPC),HCL NURSING,HNSI0000767,174.73
Department of Health,Leicestershire Partnership NHS Trust,23/08/21,NURSE - BAND 5 - AGENCY,Phoenix Ward (HPC),HCL NURSING,HNSI0000767,56.38
Department of Health,Leicestershire Partnership NHS Trust,23/08/21,NURSE - BAND 2 - AGENCY,Place Of Safety Assessment Unit,HCL NURSING,HNSI0000767,572.65
Department of Health,Leicestershire Partnership NHS Trust,23/08/21,NURSE - BAND 5 - AGENCY,Place Of Safety Assessment Unit,HCL NURSING,HNSI0000767,56.38
Department of Health,Leicestershire Partnership NHS Trust,23/08/21,NURSE - BAND 2 - AGENCY,Rutland Ward Nursing,HCL NURSING,HNSI0000767,793.43
Department of Health,Leicestershire Partnership NHS Trust,23/08/21,NURSE - BAND 5 - AGENCY,Rutland Ward Nursing,HCL NURSING,HNSI0000767,1218.64
Department of Health,Leicestershire Partnership NHS Trust,23/08/21,NURSE - BAND 2 - AGENCY,St Lukes Stroke Ward,HCL NURSING,HNSI0000767,1143.54
Department of Health,Leicestershire Partnership NHS Trust,23/08/21,NURSE - BAND 5 - AGENCY,St Lukes Ward 3,HCL NURSING,HNSI0000767,2964.02
Department of Health,Leicestershire Partnership NHS Trust,23/08/21,NURSE - BAND 2 - AGENCY,Thornton Ward - Bradgate Unit,HCL NURSING,HNSI0000767,262.38
Department of Health,Leicestershire Partnership NHS Trust,23/08/21,NURSE - BAND 2 - AGENCY,Wakerley Ward,HCL NURSING,HNSI0000767,3898.68
Department of Health,Leicestershire Partnership NHS Trust,23/08/21,NURSE - BAND 5 - AGENCY,Wakerley Ward,HCL NURSING,HNSI0000767,2382.17
Department of Health,Leicestershire Partnership NHS Trust,23/08/21,NURSE - BAND 5 - AGENCY,Watermead Ward (Bradgate Unit),HCL NURSING,HNSI0000767,329.84
Department of Health,Leicestershire Partnership NHS Trust,23/08/21,NURSE - BAND 2 - AGENCY,Welford Ward,HCL NURSING,HNSI0000767,511.80
Department of Health,Leicestershire Partnership NHS Trust,23/08/21,Nurse - Band 6 -Agency,AMH - Central Access Point,HCL NURSING,HNSI0000769,781.83
Department of Health,Leicestershire Partnership NHS Trust,23/08/21,Nurse - Band 6 -Agency,Adult City East CMHT - Merlyn Vaz,HCL NURSING,HNSI0000769,809.64
Department of Health,Leicestershire Partnership NHS Trust,23/08/21,Nurse - Band 6 -Agency,Adult County Charnwood CMHT - Loughborough Base,HCL NURSING,HNSI0000769,688.50
Department of Health,Leicestershire Partnership NHS Trust,23/08/21,NURSE - BAND 2 - AGENCY,Agnes Unit Management,HCL NURSING,HNSI0000769,789.53
Department of Health,Leicestershire Partnership NHS Trust,23/08/21,NURSE - BAND 5 - AGENCY,Agnes Unit Management,HCL NURSING,HNSI0000769,1827.19
Department of Health,Leicestershire Partnership NHS Trust,23/08/21,NURSE - BAND 2 - AGENCY,Aston Ward (Bradgate Unit),HCL NURSING,HNSI0000769,340.93
Department of Health,Leicestershire Partnership NHS Trust,23/08/21,NURSE - BAND 2 - AGENCY,Beaumont Ward - Bradgate Unit,HCL NURSING,HNSI0000769,1011.41
Department of Health,Leicestershire Partnership NHS Trust,23/08/21,NURSE - BAND 2 - AGENCY,Beechwood Ward,HCL NURSING,HNSI0000769,1126.95
Department of Health,Leicestershire Partnership NHS Trust,23/08/21,NURSE - BAND 5 - AGENCY,Beechwood Ward,HCL NURSING,HNSI0000769,1086.70
Department of Health,Leicestershire Partnership NHS Trust,23/08/21,NURSE - BAND 2 - AGENCY,Belvoir Psychiatric Intensive Care Unit,HCL NURSING,HNSI0000769,122.89
Department of Health,Leicestershire Partnership NHS Trust,23/08/21,NURSE - BAND 2 - AGENCY,CAMHS Inpatient Service,HCL NURSING,HNSI0000769,3522.39
Department of Health,Leicestershire Partnership NHS Trust,23/08/21,NURSE - BAND 5 - AGENCY,CAMHS Inpatient Service,HCL NURSING,HNSI0000769,390.15
Department of Health,Leicestershire Partnership NHS Trust,23/08/21,Nurse - Band 6 -Agency,CAMHS Waiting List Monies,HCL NURSING,HNSI0000769,1234.64
Department of Health,Leicestershire Partnership NHS Trust,23/08/21,NURSE - BAND 2 - AGENCY,Cedar (Willows),HCL NURSING,HNSI0000769,269.49
Department of Health,Leicestershire Partnership NHS Trust,23/08/21,NURSE - BAND 5 - AGENCY,City Planned Care - East,HCL NURSING,HNSI0000769,355.08
Department of Health,Leicestershire Partnership NHS Trust,23/08/21,NURSE - BAND 5 - AGENCY,City Planned Care - West,HCL NURSING,HNSI0000769,2548.03
Department of Health,Leicestershire Partnership NHS Trust,23/08/21,NURSE - BAND 2 - AGENCY,Clarendon Ward,HCL NURSING,HNSI0000769,240.34
Department of Health,Leicestershire Partnership NHS Trust,23/08/21,NURSE - BAND 5 - AGENCY,Clarendon Ward,HCL NURSING,HNSI0000769,2005.43
Department of Health,Leicestershire Partnership NHS Trust,23/08/21,NURSE - BAND 2 - AGENCY,Coalville Snibston Ward,HCL NURSING,HNSI0000769,527.22
Department of Health,Leicestershire Partnership NHS Trust,23/08/21,NURSE - BAND 5 - AGENCY,Coalville Snibston Ward,HCL NURSING,HNSI0000769,514.85
Department of Health,Leicestershire Partnership NHS Trust,23/08/21,NURSE - BAND 5 - AGENCY,Coalville Ward 2,HCL NURSING,HNSI0000769,43.20
Department of Health,Leicestershire Partnership NHS Trust,23/08/21,NURSE - BAND 2 - AGENCY,Coleman Ward,HCL NURSING,HNSI0000769,1310.52
Department of Health,Leicestershire Partnership NHS Trust,23/08/21,NURSE - BAND 5 - AGENCY,Coleman Ward,HCL NURSING,HNSI0000769,1398.75
Department of Health,Leicestershire Partnership NHS Trust,23/08/21,NURSE - BAND 2 - AGENCY,Dalgliesh Ward,HCL NURSING,HNSI0000769,1334.85
Department of Health,Leicestershire Partnership NHS Trust,23/08/21,NURSE - BAND 5 - AGENCY,Dalgliesh Ward,HCL NURSING,HNSI0000769,609.83
Department of Health,Leicestershire Partnership NHS Trust,23/08/21,NURSE - BAND 2 - AGENCY,Griffin Ward (HPC),HCL NURSING,HNSI0000769,521.42
Department of Health,Leicestershire Partnership NHS Trust,23/08/21,NURSE - BAND 2 - AGENCY,Gwendolen Ward,HCL NURSING,HNSI0000769,233.14
Department of Health,Leicestershire Partnership NHS Trust,23/08/21,NURSE - BAND 2 - AGENCY,H&B Comm Hosp East Ward,HCL NURSING,HNSI0000769,324.93
Department of Health,Leicestershire Partnership NHS Trust,23/08/21,NURSE - BAND 2 - AGENCY,H&B Comm Hosp North Ward,HCL NURSING,HNSI0000769,1556.24
Department of Health,Leicestershire Partnership NHS Trust,23/08/21,NURSE - BAND 5 - AGENCY,H&B Comm Hosp North Ward,HCL NURSING,HNSI0000769,514.85
Department of Health,Leicestershire Partnership NHS Trust,23/08/21,NURSE - BAND 5 - AGENCY,Heather Ward,HCL NURSING,HNSI0000769,659.67
Department of Health,Leicestershire Partnership NHS Trust,23/08/21,NURSE - BAND 2 - AGENCY,Kirby Ward,HCL NURSING,HNSI0000769,311.65
Department of Health,Leicestershire Partnership NHS Trust,23/08/21,NURSE - BAND 5 - AGENCY,Kirby Ward,HCL NURSING,HNSI0000769,57.00
Department of Health,Leicestershire Partnership NHS Trust,23/08/21,NURSE - BAND 5 - AGENCY,Langley Ward ED Inpatient Service,HCL NURSING,HNSI0000769,266.62
Department of Health,Leicestershire Partnership NHS Trust,23/08/21,NURSE - BAND 5 - AGENCY,Mill Lodge,HCL NURSING,HNSI0000769,581.04
Department of Health,Leicestershire Partnership NHS Trust,23/08/21,NURSE - BAND 2 - AGENCY,Phoenix Ward (HPC),HCL NURSING,HNSI0000769,503.05
Department of Health,Leicestershire Partnership NHS Trust,23/08/21,NURSE - BAND 5 - AGENCY,Rutland Ward Nursing,HCL NURSING,HNSI0000769,364.54
Department of Health,Leicestershire Partnership NHS Trust,23/08/21,NURSE - BAND 2 - AGENCY,Wakerley Ward,HCL NURSING,HNSI0000769,1237.02
Department of Health,Leicestershire Partnership NHS Trust,23/08/21,NURSE - BAND 5 - AGENCY,Wakerley Ward,HCL NURSING,HNSI0000769,469.65
Department of Health,Leicestershire Partnership NHS Trust,23/08/21,Crs_NHS_LT1y -Resus Inventory Supplied.,Balance Sheet Collection,SUPPLY CHAIN CO LTD,1122092241,25081.53
Department of Health,Leicestershire Partnership NHS Trust,23/08/21,Leased / Hired Vehicles,Autism,AUTOMOTIVE LEASING LTD,508669176,638.96
Department of Health,Leicestershire Partnership NHS Trust,23/08/21,Prep_ LT1y -Prepayments Lease Cars,Balance Sheet Collection,AUTOMOTIVE LEASING LTD,508669176,55914.67
Department of Health,Leicestershire Partnership NHS Trust,23/08/21,Trade_Drs_LT1y -Lease Cars Invoicing Contrl Ac.,Balance Sheet Collection,AUTOMOTIVE LEASING LTD,508669176,313.59
Department of Health,Leicestershire Partnership NHS Trust,23/08/21,Leased / Hired Vehicles,CHS - Head of Nursing,AUTOMOTIVE LEASING LTD,508669176,10.00
Department of Health,Leicestershire Partnership NHS Trust,23/08/21,Leased / Hired Vehicles,COVID 19,AUTOMOTIVE LEASING LTD,508669176,472.36
Department of Health,Leicestershire Partnership NHS Trust,23/08/21,Leased / Hired Vehicles,City 0 – 19 Central Report,AUTOMOTIVE LEASING LTD,508669176,10.00
Department of Health,Leicestershire Partnership NHS Trust,23/08/21,Leased / Hired Vehicles,City Planned Care - East - Therapy,AUTOMOTIVE LEASING LTD,508669176,10.00
Department of Health,Leicestershire Partnership NHS Trust,23/08/21,Leased / Hired Vehicles,Crisis Resolution,AUTOMOTIVE LEASING LTD,508669176,535.76
Department of Health,Leicestershire Partnership NHS Trust,23/08/21,Leased / Hired Vehicles,Crisis Response and Home Treatment,AUTOMOTIVE LEASING LTD,508669176,714.84
Department of Health,Leicestershire Partnership NHS Trust,23/08/21,Leased / Hired Vehicles,"East Planned Care - Melton,Syston,Rutland",AUTOMOTIVE LEASING LTD,508669176,10.00
Department of Health,Leicestershire Partnership NHS Trust,23/08/21,Leased / Hired Vehicles,Mental Health Triage Car,AUTOMOTIVE LEASING LTD,508669176,10.00
Department of Health,Leicestershire Partnership NHS Trust,23/08/21,Leased / Hired Vehicles,Respiratory Service,AUTOMOTIVE LEASING LTD,508669176,15.00
Department of Health,Leicestershire Partnership NHS Trust,23/08/21,Prep_ LT1y -Prepayments Lease Cars,Balance Sheet Collection,AUTOMOTIVE LEASING LTD,508669155,-23456.33
Department of Health,Leicestershire Partnership NHS Trust,23/08/21,Trade_Drs_LT1y -Lease Cars Invoicing Contrl Ac.,Balance Sheet Collection,AUTOMOTIVE LEASING LTD,508669155,-681.80
Department of Health,Leicestershire Partnership NHS Trust,23/08/21,Leased / Hired Vehicles,West Leicestershire CMHT MHSOP,AUTOMOTIVE LEASING LTD,508669155,-13.75
Department of Health,Leicestershire Partnership NHS Trust,23/08/21,Leased / Hired Vehicles,360 Assurance - Internal Audit,AUTOMOTIVE LEASING LTD,508804368,1053.85
Department of Health,Leicestershire Partnership NHS Trust,23/08/21,Leased / Hired Vehicles,Adult County West Leicestershire CMHT,AUTOMOTIVE LEASING LTD,508804368,10.00
Department of Health,Leicestershire Partnership NHS Trust,23/08/21,Leased / Hired Vehicles,Autism,AUTOMOTIVE LEASING LTD,508804368,638.96
Department of Health,Leicestershire Partnership NHS Trust,23/08/21,Prep_ LT1y -Prepayments Lease Cars,Balance Sheet Collection,AUTOMOTIVE LEASING LTD,508804368,106378.74
Department of Health,Leicestershire Partnership NHS Trust,23/08/21,Trade_Drs_LT1y -Lease Cars Invoicing Contrl Ac.,Balance Sheet Collection,AUTOMOTIVE LEASING LTD,508804368,240.00
Department of Health,Leicestershire Partnership NHS Trust,23/08/21,Leased / Hired Vehicles,COVID 19,AUTOMOTIVE LEASING LTD,508804368,472.36
Department of Health,Leicestershire Partnership NHS Trust,23/08/21,Leased / Hired Vehicles,Children's Occupational Therapy,AUTOMOTIVE LEASING LTD,508804368,5.00
Department of Health,Leicestershire Partnership NHS Trust,23/08/21,Leased / Hired Vehicles,City Planned Care - West,AUTOMOTIVE LEASING LTD,508804368,10.00
Department of Health,Leicestershire Partnership NHS Trust,23/08/21,Leased / Hired Vehicles,Countywide Memory Service,AUTOMOTIVE LEASING LTD,508804368,15.00
Department of Health,Leicestershire Partnership NHS Trust,23/08/21,Leased / Hired Vehicles,Crisis Resolution,AUTOMOTIVE LEASING LTD,508804368,25.00
Department of Health,Leicestershire Partnership NHS Trust,23/08/21,Leased / Hired Vehicles,"East Planned Care - Melton,Syston,Rut - Therapy",AUTOMOTIVE LEASING LTD,508804368,10.00
Department of Health,Leicestershire Partnership NHS Trust,23/08/21,Leased / Hired Vehicles,Finance Department,AUTOMOTIVE LEASING LTD,508804368,15.00
Department of Health,Leicestershire Partnership NHS Trust,23/08/21,Leased / Hired Vehicles,HIS Infrastructure,AUTOMOTIVE LEASING LTD,508804368,15.00
Department of Health,Leicestershire Partnership NHS Trust,23/08/21,Leased / Hired Vehicles,MHSOP Inpatient Therapy - Evington,AUTOMOTIVE LEASING LTD,508804368,15.00
Department of Health,Leicestershire Partnership NHS Trust,23/08/21,Leased / Hired Vehicles,Mental Health Triage Car,AUTOMOTIVE LEASING LTD,508804368,789.72
Department of Health,Leicestershire Partnership NHS Trust,23/08/21,Leased / Hired Vehicles,PIER Team - Early Intervention Services,AUTOMOTIVE LEASING LTD,508804368,15.00
Department of Health,Leicestershire Partnership NHS Trust,23/08/21,Leased / Hired Vehicles,West Planned Care  - Hinckley Hub,AUTOMOTIVE LEASING LTD,508804368,35.00
Department of Health,Leicestershire Partnership NHS Trust,23/08/21,Leased / Hired Vehicles,West Planned Care  - Hinckley Hub - Therapy,AUTOMOTIVE LEASING LTD,508804368,15.00
Department of Health,Leicestershire Partnership NHS Trust,23/08/21,Prep_ LT1y -Prepayments Lease Cars,Balance Sheet Collection,AUTOMOTIVE LEASING LTD,508804328,-71829.29
Department of Health,Leicestershire Partnership NHS Trust,23/08/21,Trade_Drs_LT1y -Lease Cars Invoicing Contrl Ac.,Balance Sheet Collection,AUTOMOTIVE LEASING LTD,508804328,-938.52
Department of Health,Leicestershire Partnership NHS Trust,25/08/21,Healthcare Services / Recharges from Non-NHS Bodies,Adult Eating Disorder Collaborative,ELLERN MEDE MOORGATE,277,37200.00
Department of Health,Leicestershire Partnership NHS Trust,25/08/21,Services / Recharges from NHS Trusts,Inter Unit I & E Distribution,UHL NHS TRUST (RWE),L0252869,60000.04
Department of Health,Leicestershire Partnership NHS Trust,25/08/21,Electricity,"Belvoir Intensive Care Unit (P7, LPT)",UHL NHS TRUST (RWE),L0252894,1651.86
Department of Health,Leicestershire Partnership NHS Trust,25/08/21,Electricity,"Bennion Centre (including Forest Grange Day Unit) (P8, LPT)",UHL NHS TRUST (RWE),L0252894,5815.71
Department of Health,Leicestershire Partnership NHS Trust,25/08/21,Electricity,"Bradgate Unit (including Glenvale day Unit) (P7, LPT)",UHL NHS TRUST (RWE),L0252894,15998.22
Department of Health,Leicestershire Partnership NHS Trust,25/08/21,Contract : Premises Security,Estates & Facilities Central,UHL NHS TRUST (RWE),L0252894,2295.52
Department of Health,Leicestershire Partnership NHS Trust,25/08/21,Electricity,"Herschel Prins (P9, LPT)",UHL NHS TRUST (RWE),L0252894,4206.64
Department of Health,Leicestershire Partnership NHS Trust,25/08/21,Electricity,Modular Training Building,UHL NHS TRUST (RWE),L0252894,783.95
Department of Health,Leicestershire Partnership NHS Trust,25/08/21,Electricity,Pharmacy Portacabin,UHL NHS TRUST (RWE),L0252894,1211.02
Department of Health,Leicestershire Partnership NHS Trust,25/08/21,Services / Recharges from NHS Trusts,UHL Expenditure Contract,UHL NHS TRUST (RWE),L0252894,5552.23
Department of Health,Leicestershire Partnership NHS Trust,25/08/21,UHL Facilities Management SLA,Estates Central Invoices To Recharge,UHL NHS TRUST (RWE),L0252895,940375.84
Department of Health,Leicestershire Partnership NHS Trust,26/08/21,Rent,"OSL House (P54, LPT)",CABOT TRUSTEES LTD,065,41700.00
Department of Health,Leicestershire Partnership NHS Trust,26/08/21,Telephone equipment,"Evington Centre (P6, LPT)",VIRGIN MEDIA BUSINESS,60046525,13203.03
Department of Health,Leicestershire Partnership NHS Trust,26/08/21,Telephone equipment,HIS Services,VIRGIN MEDIA BUSINESS,60046525,13203.04
Department of Health,Leicestershire Partnership NHS Trust,26/08/21,FP10'S,Adult City Drugs,NHS BUS SERVICES AUTHORITY,1000070216,19853.73
Department of Health,Leicestershire Partnership NHS Trust,26/08/21,FP10'S,Adult County Drugs,NHS BUS SERVICES AUTHORITY,1000070216,28782.34
Department of Health,Leicestershire Partnership NHS Trust,26/08/21,FP10'S,CAMHS Outpatients,NHS BUS SERVICES AUTHORITY,1000070216,15631.06
Department of Health,Leicestershire Partnership NHS Trust,26/08/21,FP10'S,Community Paediatrics,NHS BUS SERVICES AUTHORITY,1000070216,8533.25
Department of Health,Leicestershire Partnership NHS Trust,26/08/21,FP10'S,Dementia Related Drugs and Investigations,NHS BUS SERVICES AUTHORITY,1000070216,3068.85
Department of Health,Leicestershire Partnership NHS Trust,26/08/21,FP10'S,Eating Disorders Outpatient Service,NHS BUS SERVICES AUTHORITY,1000070216,1029.87
Department of Health,Leicestershire Partnership NHS Trust,26/08/21,FP10'S,Forensic Services - Community,NHS BUS SERVICES AUTHORITY,1000070216,75.61
Department of Health,Leicestershire Partnership NHS Trust,26/08/21,FP10'S,LOROS Pharmacy,NHS BUS SERVICES AUTHORITY,1000070216,440.39
Department of Health,Leicestershire Partnership NHS Trust,26/08/21,FP10'S,Liason Psychiatry Service,NHS BUS SERVICES AUTHORITY,1000070216,269.71
Department of Health,Leicestershire Partnership NHS Trust,26/08/21,FP10'S,Lough Swithland Ward,NHS BUS SERVICES AUTHORITY,1000070216,10.46
Department of Health,Leicestershire Partnership NHS Trust,26/08/21,FP10'S,Mental Health Liaison Team,NHS BUS SERVICES AUTHORITY,1000070216,1.10
Department of Health,Leicestershire Partnership NHS Trust,26/08/21,FP10'S,PIER Team - Early Intervention Services,NHS BUS SERVICES AUTHORITY,1000070216,15788.96
Department of Health,Leicestershire Partnership NHS Trust,26/08/21,FP10'S,Snr Med Staff (Inc Med Reps),NHS BUS SERVICES AUTHORITY,1000070216,3393.60
Department of Health,Leicestershire Partnership NHS Trust,27/08/21,CHP Estates Management,Merlyn Vaz Centre (CHP),COMM HLTH PARTNERSHIPS LTD,0060210631,30935.19
Department of Health,Leicestershire Partnership NHS Trust,27/08/21,CHP Estates Management,Merlyn Vaz Centre (CHP),COMM HLTH PARTNERSHIPS LTD,0060210634,27744.56
Department of Health,Leicestershire Partnership NHS Trust,27/08/21,Rent,"St Peters Health Center (Part 1st and 2nd floors) (P66, LPT)",LEICESTER LIFT CO,LEP1/SI0833,27433.45
